Workbook

Sheet 1 группа
A1: ТАБЕЛЬ
A2: учета посещения детей
A3: за НОЯБРЬ 2011Г.
A4: Учреждение МБДОУ "ДС №5 "Бәләкәч" г. Мамадыш"
A5: Группа: дети раннего возраста - 1 группа (тат)
A6: Режим работы 12 часовой
A8: № п/п | B8: Ф.И.О. ребенка | C8: Номер лицевого счета | D8: Плата по ставке | E8: Дни посещения | AJ8: Пропущено дней | AL8: дни посещения подлежащие оплате | AM8: причины непосеще-ния (основа-ние)
E9: 1 | F9: 2 | G9: 3 | H9: 4 | I9: 5 | J9: 6 | K9: 7 | L9: 8 | M9: 9 | N9: 10 | O9: 11 | P9: 12 | Q9: 13 | R9: 14 | S9: 15 | T9: 16 | U9: 17 | V9: 18 | W9: 19 | X9: 20 | Y9: 21 | Z9: 22 | AA9: 23 | AB9: 24 | AC9: 25 | AD9: 26 | AE9: 27 | AF9: 28 | AG9: 29 | AH9: 30 | AJ9: всего | AK9: в т.ч. засчитыв.
A10: 1 | B10: Бочкарева Дарина Павловна | I10: В | J10: В | P10: В | Q10: В | W10: В | X10: В | AD10: В | AE10: В
A11: 2 | B11: Галиева Адиля Ришатовна | I11: В | J11: В | P11: В | Q11: В | W11: В | X11: В | AD11: В | AE11: В
A12: 3 | B12: Исхакова Зарина Фанзилевна | I12: В | J12: В | P12: В | Q12: В | W12: В | X12: В | AD12: В | AE12: В
A13: 4 | B13: Магсумов Камиль Айдарович | I13: В | J13: В | P13: В | Q13: В | W13: В | X13: В | AD13: В | AE13: В
A14: 5 | B14: Шайдуллин Раяз Ильназович | I14: В | J14: В | P14: В | Q14: В | W14: В | X14: В | AD14: В | AE14: В
A15: 6 | B15: Щвецов Руслан Иванович | I15: В | J15: В | P15: В | Q15: В | W15: В | X15: В | AD15: В | AE15: В
A16: 7 | B16: Гусев Артур Сергеевич | I16: В | J16: В | P16: В | Q16: В | W16: В | X16: В | AD16: В | AE16: В
A17: 8
A18: 9
A19: 10
A20: 11
A21: 12
A22: 13
A23: 14
A24: 15
A25: 16
A26: 17
A27: 18
A28: 19
A29: 20
A30: 21
A31: 22
A32: 23
A33: 24
A34: 25
A35: Всего присутствует:
B37: Руководитель учреждения ____________________________ | E37: Закирова Р.Н.
B38: Воспитатель __________________________ | E38: ____________________

Sheet 2 группа
A1: ТАБЕЛЬ
A2: учета посещения детей
A3: за НОЯБРЬ 2011Г.
A4: Учреждение МБДОУ "ДС №5 "Бәләкәч" г. Мамадыш"
A5: Группа: дети раннего возраста - 2 группа (рус)
A6: Режим работы 12 часовой
A8: № п/п | B8: Ф.И.О. ребенка | C8: Номер лицевого счета | D8: Плата по ставке | E8: Дни посещения | AJ8: Пропущено дней | AL8: дни посещения подлежащие оплате | AM8: причины непосеще-ния (основа-ние)
E9: 1 | F9: 2 | G9: 3 | H9: 4 | I9: 5 | J9: 6 | K9: 7 | L9: 8 | M9: 9 | N9: 10 | O9: 11 | P9: 12 | Q9: 13 | R9: 14 | S9: 15 | T9: 16 | U9: 17 | V9: 18 | W9: 19 | X9: 20 | Y9: 21 | Z9: 22 | AA9: 23 | AB9: 24 | AC9: 25 | AD9: 26 | AE9: 27 | AF9: 28 | AG9: 29 | AH9: 30 | AJ9: всего | AK9: в т.ч. засчитыв.
A10: 1 | B10: Абдуллин Ренат Русланович | I10: В | J10: В | P10: В | Q10: В | W10: В | X10: В | AD10: В | AE10: В
A11: 2 | B11: Абрамов Кирилл Владиславович | I11: В | J11: В | P11: В | Q11: В | W11: В | X11: В | AD11: В | AE11: В
A12: 3 | B12: Бикманова Азалия Ильдусовна | I12: В | J12: В | P12: В | Q12: В | W12: В | X12: В | AD12: В | AE12: В
A13: 4 | B13: Гайнанова Диляра Айдаровна | I13: В | J13: В | P13: В | Q13: В | W13: В | X13: В | AD13: В | AE13: В
A14: 5 | B14: Ермолаева Лия Витальевна | I14: В | J14: В | P14: В | Q14: В | W14: В | X14: В | AD14: В | AE14: В
A15: 6 | B15: Золотухина Кристина Павловна | I15: В | J15: В | P15: В | Q15: В | W15: В | X15: В | AD15: В | AE15: В
A16: 7 | B16: Кашапова Алина Ильнаровна | I16: В | J16: В | P16: В | Q16: В | W16: В | X16: В | AD16: В | AE16: В
A17: 8 | B17: Латыпов Самат Наилевич | I17: В | J17: В | P17: В | Q17: В | W17: В | X17: В | AD17: В | AE17: В
A18: 9 | B18: Мутигуллин Алмаз Ильнарович | I18: В | J18: В | P18: В | Q18: В | W18: В | X18: В | AD18: В | AE18: В
A19: 10 | B19: Мухаметзянова Алсу Зульфатовна | I19: В | J19: В | P19: В | Q19: В | W19: В | X19: В | AD19: В | AE19: В
A20: 11 | B20: Мухаметзянова Рената Айратовна | I20: В | J20: В | P20: В | Q20: В | W20: В | X20: В | AD20: В | AE20: В
A21: 12 | B21: Осинин Лев Алексеевич | I21: В | J21: В | P21: В | Q21: В | W21: В | X21: В | AD21: В | AE21: В
A22: 13 | B22: Марков Захар Евгеньевич | I22: В | J22: В | P22: В | Q22: В | W22: В | X22: В | AD22: В | AE22: В
A23: 14 | B23: Садретдинов Искандер Фанилевич | I23: В | J23: В | P23: В | Q23: В | W23: В | X23: В | AD23: В | AE23: В
A24: 15 | B24: Буринкова Дана Александровна | I24: В | J24: В | P24: В | Q24: В | W24: В | X24: В | AD24: В | AE24: В
A25: 16
A26: 17
A27: 18
A28: 19
A29: 20
A30: 21
A31: 22
A32: 23
A33: 24
A34: 25
A35: Всего присутствует:
B37: Руководитель учреждения ____________________________ | E37: Закирова Р.Н.
B38: Воспитатель __________________________ | E38: ____________________

Sheet 3 группа
A1: ТАБЕЛЬ
A2: учета посещения детей
A3: за НОЯБРЬ 2011Г.
A4: Учреждение МБДОУ "ДС №5 "Бәләкәч" г. Мамадыш"
A5: Группа: 1 мл. группа - 3 группа
A6: Режим работы 12 часовой
A8: № п/п | B8: Ф.И.О. ребенка | C8: Номер лицевого счета | D8: Плата по ставке | E8: Дни посещения | AJ8: Пропущено дней | AL8: дни посещения подлежащие оплате | AM8: причины непосеще-ния (основа-ние)
E9: 1 | F9: 2 | G9: 3 | H9: 4 | I9: 5 | J9: 6 | K9: 7 | L9: 8 | M9: 9 | N9: 10 | O9: 11 | P9: 12 | Q9: 13 | R9: 14 | S9: 15 | T9: 16 | U9: 17 | V9: 18 | W9: 19 | X9: 20 | Y9: 21 | Z9: 22 | AA9: 23 | AB9: 24 | AC9: 25 | AD9: 26 | AE9: 27 | AF9: 28 | AG9: 29 | AH9: 30 | AJ9: всего | AK9: в т.ч. засчитыв.
A10: 1 | B10: Абдуллина Алина Линаровна | I10: В | J10: В | P10: В | Q10: В | W10: В | X10: В | AD10: В | AE10: В
A11: 2 | B11: Исмагилова Рузиля Рунаровна | I11: В | J11: В | P11: В | Q11: В | W11: В | X11: В | AD11: В | AE11: В
A12: 3 | B12: Фархутдинова Ралина Айнуровна | I12: В | J12: В | P12: В | Q12: В | W12: В | X12: В | AD12: В | AE12: В
A13: 4 | B13: Галеев Ислам Шамилович | I13: В | J13: В | P13: В | Q13: В | W13: В | X13: В | AD13: В | AE13: В
A14: 5 | B14: Максимова Альбина Васильевна | I14: В | J14: В | P14: В | Q14: В | W14: В | X14: В | AD14: В | AE14: В
A15: 6 | B15: Ханафеев Расуль Исламович | I15: В | J15: В | P15: В | Q15: В | W15: В | X15: В | AD15: В | AE15: В
A16: 7 | B16: Фатхутдинова Язиля Ниязовна | I16: В | J16: В | P16: В | Q16: В | W16: В | X16: В | AD16: В | AE16: В
A17: 8 | B17: Шарифуллин Адель Рафисович | I17: В | J17: В | P17: В | Q17: В | W17: В | X17: В | AD17: В | AE17: В
A18: 9 | B18: Зиганшин Ильдан Ришатович | I18: В | J18: В | P18: В | Q18: В | W18: В | X18: В | AD18: В | AE18: В
A19: 10 | B19: Зиганшин Рамзиль Рузилевич | I19: В | J19: В | P19: В | Q19: В | W19: В | X19: В | AD19: В | AE19: В
A20: 11 | B20: Рахимов Тимур Русланович | I20: В | J20: В | P20: В | Q20: В | W20: В | X20: В | AD20: В | AE20: В
A21: 12 | B21: Тимашева Иван Васильевна | I21: В | J21: В | P21: В | Q21: В | W21: В | X21: В | AD21: В | AE21: В
A22: 13 | B22: Шабанов Вадим Робертович | I22: В | J22: В | P22: В | Q22: В | W22: В | X22: В | AD22: В | AE22: В
A23: 14
A24: 15
A25: 16
A26: 17
A27: 18
A28: 19
A29: 20
A30: 21
A31: 22
A32: 23
A33: 24
A34: 25
A35: Всего присутствует:
B37: Руководитель учреждения ____________________________ | E37: Закирова Р.Н.
B38: Воспитатель __________________________ | E38: ____________________

Sheet 4 группа
A1: ТАБЕЛЬ
A2: учета посещения детей
A3: за НОЯБРЬ 2011Г.
A4: Учреждение МБДОУ "ДС №5 "Бәләкәч" г. Мамадыш"
A5: Группа: 2 мл. группа - 4 группа
A6: Режим работы 12 часовой
A8: № п/п | B8: Ф.И.О. ребенка | C8: Номер лицевого счета | D8: Плата по ставке | E8: Дни посещения | AJ8: Пропущено дней | AL8: дни посещения подлежащие оплате | AM8: причины непосеще-ния (основа-ние)
E9: 1 | F9: 2 | G9: 3 | H9: 4 | I9: 5 | J9: 6 | K9: 7 | L9: 8 | M9: 9 | N9: 10 | O9: 11 | P9: 12 | Q9: 13 | R9: 14 | S9: 15 | T9: 16 | U9: 17 | V9: 18 | W9: 19 | X9: 20 | Y9: 21 | Z9: 22 | AA9: 23 | AB9: 24 | AC9: 25 | AD9: 26 | AE9: 27 | AF9: 28 | AG9: 29 | AH9: 30 | AJ9: всего | AK9: в т.ч. засчитыв.
A10: 1 | B10: Ахмадуллин Булат Эдуардович | I10: В | J10: В | P10: В | Q10: В | W10: В | X10: В | AD10: В | AE10: В
A11: 2 | B11: Вагизов Рузиль Рамилевич | I11: В | J11: В | P11: В | Q11: В | W11: В | X11: В | AD11: В | AE11: В
A12: 3 | B12: Казакова Аделия Алмазовна | I12: В | J12: В | P12: В | Q12: В | W12: В | X12: В | AD12: В | AE12: В
A13: 4 | B13: Мавзютов Ильяс Робертович | I13: В | J13: В | P13: В | Q13: В | W13: В | X13: В | AD13: В | AE13: В
A14: 5 | B14: Пензин Матвей Александрович | I14: В | J14: В | P14: В | Q14: В | W14: В | X14: В | AD14: В | AE14: В
A15: 6 | B15: Мазилова Ангелина Михайловна | I15: В | J15: В | P15: В | Q15: В | W15: В | X15: В | AD15: В | AE15: В
A16: 7
A17: 8
A18: 9
A19: 10
A20: 11
A21: 12
A22: 13
A23: 14
A24: 15
A25: 16
A26: 17
A27: 18
A28: 19
A29: 20
A30: 21
A31: 22
A32: 23
A33: 24
A34: 25
A35: Всего присутствует:
B37: Руководитель учреждения ____________________________ | E37: Закирова Р.Н.
B38: Воспитатель __________________________ | E38: ____________________

Sheet 1д.
A1: Примерное двухнедельное меню школьных завтраков и обедов для МБОУ "Верхнеякинская ООШ"
A2: Использован: Сборник рецептур блюд и кулинарных изделий для предприятий общетвенного питания 1993 и 1996гг.Сборник рецнптур блюд и кулинарный изделий татарской нацинальной кухни 1997г.
A4: день 1 | B4: наименование блюд | C4: кол-во | D4: брутта | E4: нетто | F4: Б | G4: Ж | H4: У | I4: Ккал | J4: С
A5: завтрак | B5: каша вязкая пшенная с маслом | C5: 200
B6: масло сливочное "крестьянское" | D6: 5 | E6: 5 | F6: 0.04 | G6: 3.63 | H6: 0.13 | I6: 33.05
B7: крупа пшено | D7: 20 | E7: 20 | H7: 0.34 | I7: 68.9
B8: сахар | D8: 5 | E8: 5 | H8: 4.99 | I8: 18.95
B9: соль поваренная йодиров. | D9: 1 | E9: 1
B10: молоко пастериз.2,5% | D10: 150 | E10: 150 | F10: 4.23 | G10: 3.75 | H10: 7.09 | I10: 78 | J10: 1.95
F11: 4.27 | G11: 7.38 | H11: 12.55 | I11: 198.9 | J11: =SUM(J6:J10) -> 1.95
B12: кофейный напиток с молоком | C12: 180
B13: кофейный напиток | D13: 3 | E13: 3 | H13: 0.084
B14: сахар | D14: 12 | E14: 12 | H14: 11.98 | I14: 45.48
B15: молоко пастериз.2,5% | D15: 150 | E15: 150 | F15: 4.27 | G15: 3.75 | H15: 7.09 | I15: 78 | J15: 1.95
F16: =SUM(F13:F15) -> 4.27 | G16: =SUM(G13:G15) -> 3.75 | H16: =SUM(H13:H15) -> 19.154 | I16: =SUM(I13:I15) -> 123.48 | J16: =SUM(J14:J15) -> 1.95
B17: Бутерброд с маслом и сыром | C17: 40/5/6
B18: хлеб пшеничный | D18: 40 | E18: 40 | F18: 3.5 | G18: 0.6 | H18: 0.58 | I18: 83.6
B19: масло сливочное | D19: 5 | E19: 5 | F19: 0.04 | G19: 3.63 | H19: 0.13 | I19: 33.09
B20: сыр | D20: 5 | E20: 5 | F20: 1.56 | G20: 1.54 | I20: 20.28 | J20: 0.16
F21: =SUM(F18:F20) -> 5.1 | G21: =SUM(G18:G20) -> 5.77 | H21: =SUM(H18:H20) -> 0.71 | I21: =SUM(I18:I20) -> 136.97 | J21: =SUM(J18:J20) -> 0.16
F22: =F21+F16+F11 -> 13.64 | G22: =G21+G16+G11 -> 16.9 | H22: 32.414 | I22: 459.35 | J22: 4.06
A24: обед | B24: салат из моркови | C24: 100
B25: морковь | D25: 120 | E25: 96 | F25: 0.93 | G25: 0.057 | H25: 4.032 | I25: 19.58 | J25: 2.88
B26: сахар | D26: 5 | E26: 5 | H26: 1.99 | I26: 11.37
B27: Масло растит | D27: 5 | E27: 5 | G27: 4.99 | I27: 44.95
F28: =SUM(F25:F26) -> 0.93 | G28: =SUM(G25:G26) -> 0.057 | H28: =SUM(H25:H26) -> 6.022 | I28: =SUM(I25:I27) -> 75.9 | J28: =SUM(J25:J26) -> 2.88
B29: суп вермишелевыйна мк/б | C29: 200
B30: говядина | D30: 30 | E30: 22.5 | F30: 5.58 | G30: 3.6 | I30: 49.05
B31: морковь | D31: 13 | E31: 10.4 | F31: 0.169 | H31: 0.73 | I31: 3.54 | J31: 0.52
B32: лук | D32: 12 | E32: 10 | F32: 0.17 | G32: 0.01 | H32: 0.9 | I32: 4.13 | J32: 1.01
B33: вермишель | D33: 10 | E33: 10 | F33: 1 | G33: 0.11 | H33: 0.2 | I33: 33.7
B34: картофель | D34: 120 | E34: 86.4 | F34: 2.4 | G34: 0.34 | H34: 14.94 | I34: 69.12 | J34: 17.3
B35: масло сливочное | D35: 3 | E35: 3 | F35: 0.024 | G35: 2.18 | H35: 0.078 | I35: 19.83
B36: масло растительное | D36: 2 | E36: 2 | G36: 1.99 | I36: 17.98
B37: соль поваренная йодиров. | D37: 1.5 | E37: 1.5
F38: =SUM(F30:F37) -> 9.343 | G38: =SUM(G30:G37) -> 8.23 | H38: =SUM(H30:H37) -> 16.848 | I38: =SUM(I30:I37) -> 197.35 | J38: =SUM(J30:J37) -> 18.83
B39: капуста тушен с мясом | C39: 200
B40: капуста свежая | D40: 276 | E40: 220.8 | F40: 5 | G40: 0.22 | H40: 10.76
B41: масло растительное | D41: 5 | E41: 5 | G41: 4.99 | I41: 44.95
B42: морковь | D42: 12 | E42: 9.6 | F42: 0.2 | G42: 0.01 | H42: 0.67 | I42: 3.26 | J42: 0.48
B43: лук репчатый | D43: 18 | E43: 15.72 | H43: 1.36 | I43: 6.13 | J43: 1.51
B44: мясо | D44: 70 | E44: 50 | F44: 13.02 | G44: 8.4 | I44: 114.45
B45: сметана 20% | D45: 10 | E45: 10 | F45: 0.28 | G45: 2 | H45: 0.64 | I45: 20.6 | J45: 0.03
B46: соль поваренная йодиров. | D46: 1.5 | E46: 1.5
B47: масло сливочное | D47: 3 | E47: 3 | F47: 0.024 | G47: 2.18 | H47: 1.078 | I47: 19.83
F48: =SUM(F40:F47) -> 18.524 | G48: =SUM(G40:G47) -> 17.8 | H48: =SUM(H40:H47) -> 14.508 | I48: =SUM(I40:I47) -> 209.22 | J48: =J41+J42+J43+J44+J45+J46 -> 2.02
B49: компот из св фрукты | C49: 200
B50: яблоки | D50: 25 | E50: 22 | F50: 0.1 | G50: 0.088 | H50: 1.98 | I50: 9.9 | J50: 36.3
B51: сахар | D51: 12 | E51: 12 | H51: 11.98 | I51: 45.48
F52: =SUM(F50:F51) -> 0.1 | G52: =SUM(G50:G51) -> 0.088 | H52: =SUM(H50:H51) -> 13.96 | I52: =SUM(I50:I51) -> 55.38 | J52: =SUM(J50:J51) -> 36.3
B53: хлеб ржаной | C53: 50 | F53: 3.3 | G53: 0.6 | H53: 0.6 | I53: 90.5
F54: =F28+F38+F48+F52+F53 -> 32.197 | G54: =G28+G38+G48+G52+G53 -> 26.775 | H54: =H28+H38+H48+H52+H53 -> 51.938 | I54: =I28+I38+I48+I52+I53 -> 628.35 | J54: =J28+J38+J48+J52+J53 -> 60.03
F55: =F54+F22 -> 45.837 | G55: =G54+G22 -> 43.675 | H55: 84.352 | I55: 1087.7 | J55: 64.09

Sheet 2д.
A1: день 2 | B1: наименование блюд | C1: кол-во | D1: брутто | E1: нетто | F1: Б | G1: Ж | H1: У | I1: Ккал | J1: С
A2: завтрак | B2: каша манная с маслом | C2: 200/5
B3: крупа манная | D3: 20 | E3: 20 | F3: 2.1 | G3: 0.2 | H3: 0.06 | I3: 65.6
B4: молоко пастериз.2,5% | D4: 150 | E4: 150 | F4: 4.27 | G4: 3.75 | H4: 7.09 | I4: 78 | J4: 1.95
B5: сахар | D5: 5 | E5: 5 | H5: 4.99 | I5: 18.95
B6: масло сливочное | D6: 5 | E6: 5 | F6: 0.04 | G6: 3.53 | H6: 0.13 | I6: 33.05
B7: соль поваренная йодиров. | D7: 1 | E7: 1
F8: =SUM(F3:F7) -> 6.41 | G8: =SUM(G3:G7) -> 7.48 | H8: =SUM(H3:H7) -> 12.27 | I8: =SUM(I3:I7) -> 195.6 | J8: =SUM(J3:J7) -> 1.95
B9: какао с молоком | C9: 200
B10: какао порошок | D10: 2 | E10: 2 | F10: 0.48 | G10: 0.35 | H10: 0.07 | I10: 0.56
B11: сахар | D11: 12 | E11: 12 | H11: 11.98 | I11: 45.48
B12: молоко пастериз.2,5% | D12: 150 | E12: 150 | F12: 4.27 | G12: 3.75 | H12: 7.09 | I12: 78 | J12: 1.95
F13: =SUM(F10:F12) -> 4.75 | G13: =SUM(G10:G12) -> 4.1 | H13: =SUM(H10:H12) -> 19.14 | I13: =SUM(I10:I12) -> 124.04 | J13: =SUM(J11:J12) -> 1.95
B14: Батон с маслом и сыром | C14: 40/5/6
B15: Батон | D15: 40 | E15: 40 | F15: 3.5 | G15: 0.6 | H15: 0.58 | I15: 83.6
B16: масло сливочное | D16: 5 | E16: 5 | F16: 0.04 | G16: 3.63 | H16: 0.13 | I16: 33.09
B17: сыр | D17: 5 | E17: 5 | F17: 1.56 | G17: 1.54 | I17: 20.28 | J17: 0.16
F18: =SUM(F15:F17) -> 5.1 | G18: =SUM(G15:G17) -> 5.77 | H18: =SUM(H15:H17) -> 0.71 | I18: =SUM(I15:I17) -> 136.97 | J18: =SUM(J15:J17) -> 0.16
F19: =F18+F13+F8 -> 16.26 | G19: =G18+G13+G8 -> 17.35 | H19: 32.12 | I19: 456.61 | J19: 4.06
A21: обед | B21: Салат из зеленого горошка | C21: 32
B22: Зеленый горошек(консервы) | D22: 40 | E22: 26.68 | F22: 2 | G22: 0.08 | H22: 4.7 | I22: 29.2
B23: лук репчатый | D23: 5 | E23: 4.2 | F23: 0.07 | H23: 0.38 | I23: 1.72
B24: масло растит | D24: 2 | E24: 2 | G24: 1.998 | I24: 17.98
F25: =SUM(F22:F24) -> 2.07 | G25: =SUM(G22:G24) -> 2.078 | H25: 5.08 | I25: 48.9 | J25: 0
B26: Борщ на мк/б | C26: 200
B27: свекла | D27: 50 | E27: 40 | F27: 0.7 | G27: 0.04 | H27: 36 | I27: 16.8 | J27: 4
B28: капуста белок.свеж. | D28: 50 | E28: 40 | F28: 0.9 | G28: 0.04 | H28: 1.84 | I28: 10.8 | J28: 18
B29: картофельс 01.01 | D29: 120 | E29: 86.4 | F29: 2.4 | G29: 0.34 | H29: 14.94 | I29: 69.12 | J29: 17.3
B30: морковь | D30: 17 | E30: 13.6 | F30: 0.2 | G30: 0.014 | H30: 0.96 | I30: 4.63 | J30: 0.68
B31: лук репчатый | D31: 12 | E31: 10 | F31: 0.17 | G31: 0.01 | H31: 0.9 | I31: 4.13 | J31: 1.01
B32: масло растит | D32: 5 | E32: 5 | G32: 4.99 | I32: 44.95
B33: масло сливочное | D33: 2 | E33: 2 | G33: 1.99 | I33: 17.98
B34: мясо | D34: 30 | E34: 22.5 | F34: 5.58 | G34: 3.6 | I34: 49.05
B35: сметана | D35: 7 | E35: 7 | F35: 0.2 | G35: 1.4 | H35: 0.45 | I35: 14.42 | J35: 0.21
B36: том пюре | D36: 2 | E36: 2 | F36: 0.1 | G36: 0.38 | I36: 1.98
B37: соль поваренная йодиров. | D37: 1 | E37: 1
F38: =SUM(F27:F37) -> 10.25 | G38: =SUM(G27:G37) -> 12.804 | H38: =SUM(H27:H37) -> 55.09 | I38: =SUM(I27:I37) -> 233.86 | J38: =SUM(J27:J37) -> 41.2
B39: мясные котлеты | C39: 70 | F39: 11.92 | G39: 8.8 | H39: 11.64 | I39: 173
B40: говядина | D40: 80 | E40: 60 | F40: 14.88 | G40: 9.6 | I40: 130.8
B41: хлеб пшен. | D41: 12 | E41: 12 | F41: 1 | G41: 0.18 | H41: 0.17 | I41: 25.08
B42: молоко пастериз.2,5% | D42: 15 | E42: 15 | F42: 0.42 | G42: 0.38 | H42: 1.47 | I42: 18.3 | J42: 0.39
B43: сухари | D43: 8 | E43: 8 | F43: 0.5 | G43: 0.096 | H43: 0.096 | I43: 14.48
B44: яицо | D44: 0.1 | E44: 0.1 | F44: 0.013 | G44: 0.01 | H44: 0.0006 | I44: 0.14
B45: масло слив. | D45: 3 | E45: 3 | F45: 0.024 | G45: 2.8 | H45: 0.078 | I45: 19.83
B46: соль поваренная йодиров. | D46: 1 | E46: 1
B47: лук репчатый | D47: 12 | E47: 10 | F47: 0.17 | G47: 0.01 | H47: 0.9 | I47: 4.13 | J47: 1.01
F49: =SUM(F39:F47) -> 28.927 | G49: =SUM(G39:G47) -> 21.876 | H49: =SUM(H39:H47) -> 14.3546 | I49: =SUM(I39:I47) -> 385.76 | J49: =SUM(J39:J47) -> 1.4
B50: Каша гречневая отв с маслом | C50: 150
B51: крупа гречневая | D51: 40 | E51: 40 | F51: 8.5 | G51: 1.81 | H51: 0.55 | I51: 132.7
B52: масло сливочное | D52: 2 | E52: 2 | F52: 0.16 | G52: 1.45 | H52: 0.104 | I52: 13.22
B53: соль поваренная йодиров. | D53: 1 | E53: 1
F54: =SUM(F51:F53) -> 8.66 | G54: =SUM(G51:G53) -> 3.26 | H54: =SUM(H51:H53) -> 0.654 | I54: =SUM(I51:I53) -> 145.92
B55: компот из с/фр | C55: 200
B56: фрукты сушеные | D56: 18 | E56: 15.84 | F56: 0.4 | H56: 7.07 | I56: 31.52 | J56: 0.32
B57: сахар | D57: 12 | E57: 12 | H57: 11.98 | I57: 45.48
F58: =SUM(F55:F57) -> 0.4 | G58: =SUM(G55:G57) -> 0 | H58: =SUM(H55:H57) -> 19.05 | I58: =SUM(I55:I57) -> 77 | J58: =SUM(J55:J57) -> 0.32
B59: хлеб ржаной | C59: 40 | F59: 2.6 | G59: 0.6 | H59: 22.14 | I59: 106.6 | J59: 0.4
F60: =F25+F38+F49+F54+F58+F59 -> 52.907 | G60: =G25+G38+G49+G54+G58+G59 -> 40.618 | H60: =H25+H38+H49+H54+H58+H59 -> 116.3686 | I60: =I25+I38+I49+I54+I58+I59 -> 998.04 | J60: =J25+J38+J49+J54+J58+J59 -> 43.32
B61: пироги с курагой | C61: 80
B62: мука пшеничная | D62: 60 | E62: 60 | F62: 6.2 | G62: 0.66 | H62: 0.12 | I62: 200.4
B63: сахар | D63: 7 | E63: 7 | H63: 6.99 | I63: 26.53
B64: масло сливочное | D64: 5 | E64: 5 | F64: 0.04 | G64: 3.63 | H64: 0.13 | I64: 33.05
B65: яицо | D65: 0,2 | E65: 0.2
B66: соль | D66: 1 | E66: 1
B67: дрожжи | D67: 1,3 | E67: 1.3
B68: курага | D68: 12 | E68: 12 | F68: 0.26 | H68: 4.75 | I68: 21.01 | J68: 0.21
B69: сметана | D69: 5 | E69: 5 | F69: 0.14 | G69: 1 | H69: 0.32 | I69: 10.3 | J69: 0.015
B70: молоко пастериз.2,5% | D70: 50 | E70: 50 | F70: 1.41 | G70: 1.25 | H70: 4.72 | I70: 26 | J70: 0.65
B71: масло растит | D71: 2,5 | E71: 2.5 | G71: 1.99
F72: =SUM(F62:F71) -> 8.05 | G72: =SUM(G62:G71) -> 8.53 | H72: =SUM(H62:H71) -> 17.03 | I72: =SUM(I62:I71) -> 317.29 | J72: =SUM(J62:J71) -> 0.875
F73: =F72+F60 -> 60.957 | G73: =G72+G60 -> 49.148 | H73: 133.3986 | I73: 1315.33 | J73: 44.195

Sheet 3д
A1: день 3 | B1: наименование блюд | C1: кол-во | D1: брутто | E1: нетто | F1: Б | G1: Ж | H1: У | I1: Ккал | J1: С
A2: завтрак | B2: суп молочный вермишелевый | C2: 200/5
B3: макаронные изделия | D3: 20 | E3: 19.8 | F3: 2.1 | G3: 0.22 | H3: 0.4 | I3: 67.4
B4: молоко пастериз.2,5% | D4: 150 | E4: 150 | F4: 4.27 | G4: 3.75 | H4: 7.09 | I4: 78
B5: сахар песок | D5: 5 | E5: 5 | H5: 4.99 | I5: 18.95
B6: масло сливочное | D6: 5 | E6: 5 | F6: 0.04 | G6: 3.53 | H6: 0.13 | I6: 33.05
B7: соль поваренная йодиров. | D7: 1 | E7: 1
F8: =SUM(F3:F7) -> 6.41 | G8: =SUM(G3:G7) -> 7.5 | H8: =SUM(H3:H7) -> 12.61 | I8: =SUM(I3:I7) -> 197.4 | J8: =SUM(J3:J7) -> 0
B9: кофейный напиток с молоком | C9: 180
B10: кофейный напиток | D10: 3 | E10: 3 | H10: 0.084
B11: сахар | D11: 12 | E11: 12 | H11: 11.98 | I11: 45.48
B12: молоко пастериз.2,5% | D12: 150 | E12: 150 | F12: 4.27 | G12: 3.75 | H12: 7.09 | I12: 78
F13: =SUM(F10:F12) -> 4.27 | G13: =SUM(G10:G12) -> 3.75 | H13: =SUM(H10:H12) -> 19.154 | I13: =SUM(I10:I12) -> 123.48 | J13: 0
B14: Хлеб с маслом и сыром | C14: 40/5/6
B15: хлеб пшеничный | D15: 40 | E15: 40 | F15: 3.5 | G15: 0.6 | H15: 0.58 | I15: 83.6
B16: масло сливочное | D16: 5 | E16: 5 | F16: 0.04 | G16: 3.63 | H16: 0.13 | I16: 33.09
B17: сыр | D17: 5 | E17: 5 | F17: 1.56 | G17: 1.54 | I17: 20.28 | J17: 0.16
F18: =SUM(F15:F17) -> 5.1 | G18: =SUM(G15:G17) -> 5.77 | H18: =SUM(H15:H17) -> 0.71 | I18: =SUM(I15:I17) -> 136.97 | J18: =SUM(J15:J17) -> 0.16
F19: =F18+F13+F8 -> 15.78 | G19: =G18+G13+G8 -> 17.02 | H19: 32.474 | I19: 457.85 | J19: 0.16
EG20: чернослив | EI20: 6 | EJ20: 6
A21: обед | B21: салат свекольный с чернослив | C21: 100 | EG21: масло растит | EI21: 3 | EJ21: 3 | EV21: суп картоф с м фрикад. | EW21: 250 | EZ21: 1,99 | FA21: 5.03 | FB21: 16.92 | FC21: 122 | FD21: 24.95 | FE21: 0.93 | FF21: 0.095 | FG21: 0.06 | FH21: 7.53
B22: свекла | D22: 110 | E22: 50.4 | F22: 0.9 | G22: 0.05 | H22: 4.54 | I22: 21.17 | J22: 5.04 | EG22: сахар | EI22: 3 | EJ22: 3 | EV22: р. | EW22: 200 | EZ22: 22,02 | FA22: 6.79 | FB22: 19.95 | FC22: 259 | FD22: 28.27 | FE22: 3.66 | FF22: 0.19 | FG22: 0.3 | FH22: 8.15
B23: чернослив | D23: 6 | E23: 5.4 | H23: 0.51 | I23: 2.33 | J23: 0.54 | EG23: суп картофельный с мясными фрикадельками | EH23: 250 | EK23: 6.64 | EL23: 5.18 | EM23: 15.44 | EN23: 139 | EO23: 25 | EP23: 1.47 | EQ23: 0.13 | ER23: 0.12 | ES23: 11.2 | EV23: компот из куряги | EW23: 200 | EZ23: 0,44 | FA23: 0.02 | FB23: 27.76 | FC23: 113 | FD23: 31.82 | FE23: 1.24 | FF23: 0.002 | FG23: 0.006 | FH23: 0.4
B24: масло растит | D24: 3 | E24: 3 | G24: 2.99 | I24: 26.97 | EG24: картофельс 01.01 | EI24: 154 | EJ24: 100 | EV24: хлеб ржаной | EW24: 50 | EZ24: 2,6 | FA24: 0.6 | FB24: 22.14 | FC24: 106.6 | FD24: 14.5 | FE24: 1 | FF24: 0.066 | FG24: 0.064 | FH24: 0
B25: сахар | D25: 3 | E25: 3 | H25: 2.99 | I25: 11.37 | EG25: морковь | EI25: 13 | EJ25: 10
F26: =SUM(F22:F25) -> 0.9 | G26: =SUM(G22:G25) -> 3.04 | H26: =SUM(H22:H25) -> 8.04 | I26: =SUM(I22:I25) -> 61.84 | J26: =SUM(J22:J25) -> 5.58 | EG26: лук репчатый | EI26: 12 | EJ26: 10 | EU26: упл. полдн. | EV26: 15:15 сок | EW26: 100 | EZ26: 0,5 | FA26: 0 | FB26: 10.1 | FC26: 42.22 | FD26: 7 | FE26: 1.4 | FF26: 0.01 | FG26: 0.01 | FH26: 2
B27: суп картофельный с мясными фрикадельками | C27: 250/25 | EG27: масло растит | EI27: 2.5 | EJ27: 2.5 | EV27: Пудинг из творога с яблоками | EW27: 150 | EZ27: 20,46 | FA27: 18.09 | FB27: 22.11 | FC27: 333 | FD27: 175.5 | FE27: 1.83 | FF27: 0.06 | FG27: 0.33 | FH27: 2.07
B28: картофель с 01.01 | D28: 154 | E28: 111 | F28: 3.1 | G28: 0.44 | H28: 1.44 | I28: 88.7 | J28: 22.18 | EG28: фрикадельки | EI28: 25 | EJ28: 25 | EV28: кисель | EW28: 200 | EZ28: 1,36 | FA28: 0 | FB28: 29.02 | FC28: 116.19 | FD28: 8.4 | FE28: 0.14 | FF28: 0.002 | FG28: 0.003 | FH28: 0.4
B29: морковь | D29: 14 | E29: 10 | EG29: яицо | EI29: 0.2 | EJ29: 0.2 | EV29: хлеб пшеничный | EW29: 40 | EZ29: 2,84 | FA29: 0.44 | FB29: 18.16 | FC29: 91.6 | FD29: 8 | FE29: 0.68 | FF29: 0.04 | FG29: 0.03 | FH29: 0
B30: лук репчатый | D30: 14 | E30: 10.4 | F30: 0.169 | H30: 0.73 | I30: 3.54 | J30: 0.52 | EG30: том пюре | EI30: 2 | EJ30: 2
B31: масло растит | D31: 2.5 | E31: 2.5 | F31: 2.5 | I31: 22.48 | EG31: соль | EI31: 1 | EJ31: 1 | EZ31: 68,77 | FA31: =SUM(G2:G93) -> 179.74 | FB31: =SUM(H2:H93) -> 242.9416 | FC31: =SUM(I2:I93) -> 4812.712 | FD31: =SUM(J2:J93) -> 144.62 | FE31: =SUM(K1:K12) -> 0 | FF31: =SUM(L1:L12) -> 0 | FG31: =SUM(M1:M5) -> 0 | FH31: =SUM(N1:N5) -> 0
B32: говядина | D32: 54 | E32: 40 | F32: 16.74 | G32: 10.8 | I32: 147.15 | EG32: рыбные котлеты | EH32: 70 | EK32: 10.09 | EL32: 3.26 | EM32: 6.79 | EN32: 97 | EO32: 19.9 | EP32: 0.57 | EQ32: 0.06 | ER32: 0.05 | ES32: 0.24
B33: яицо | D33: 0.2 | E33: 0.2 | F33: 0.025 | G33: 0.02 | H33: 0.0012 | I33: 0.27 | EG33: рыба филе | EI33: 70 | EJ33: 70
B34: том пюре | D34: 2 | E34: 2 | F34: 0.1 | G34: 0.38 | I34: 1.98 | EG34: хлеб пшен. | EI34: 12 | EJ34: 12
B35: соль поваренная йодиров. | D35: 1.5 | E35: 1.5 | EG35: молоко | EI35: 17 | EJ35: 17
F36: =SUM(F28:F35) -> 22.634 | G36: =SUM(G28:G35) -> 11.64 | H36: =SUM(H28:H35) -> 2.1712 | I36: =SUM(I28:I35) -> 264.12 | J36: =SUM(J28:J35) -> 22.7 | EG36: масло слив. | EI36: 3.5 | EJ36: 3.5
B37: рыбные котлеты | C37: 70
B38: рыба | D38: 110 | E38: 50.6 | F38: 17.49 | G38: 0.46 | I38: 36.43
B39: хлеб пшен. | D39: 12 | E39: 12 | F39: 1 | G39: 0.18 | H39: 0.17 | I39: 25.08
B40: молоко пастериз.2,5% | D40: 17 | E40: 17 | F40: 0.48 | G40: 0.43 | H40: 0.168 | I40: 8.84 | J40: 0.22
B41: яицо | D41: 0.2 | E41: 0.17 | F41: 0.025 | G41: 0.02 | H41: 0.0012 | I41: 0.273
B42: масло слив. | D42: 3 | E42: 3 | F42: 0.024 | G42: 2.18 | H42: 0.078 | I42: 19.83
B43: соль поваренная йодиров. | D43: 1 | E43: 1
B44: лук репчатый | D44: 24 | E44: 20.16 | F44: 0.34 | H44: 1.97 | I44: 8.27 | J44: 2.02
B45: масло растит | D45: 3 | E45: 3 | G45: 2.69 | I45: 26.97
F46: =SUM(F38:F45) -> 19.359 | G46: =SUM(G38:G45) -> 5.96 | H46: =SUM(H38:H45) -> 2.3872 | I46: =SUM(I38:I45) -> 125.693 | J46: =SUM(J38:J45) -> 2.24
B47: огурцы порционные | C47: 60 | D47: 55.8 | F47: 0.48 | G47: 0.056 | H47: 2.02 | I47: 7.82 | J47: 5.58
B48: перловая каша с маслом | C48: 150
B49: крупа перловая | D49: 40 | E49: 39.6 | F49: 3.7 | G49: 0.44 | H49: 0.36 | I49: 126.72
B50: масло сливочное | D50: 3 | E50: 3 | F50: 0.024 | G50: 2.18 | H50: 0.078 | I50: 19.83
B51: соль поваренная йодиров. | D51: 1.5 | E51: 1.5
F52: =SUM(F49:F51) -> 3.724 | G52: =SUM(G49:G51) -> 2.62 | H52: =SUM(H49:H51) -> 0.438 | I52: =SUM(I49:I51) -> 146.55 | J52: =SUM(J49:J51) -> 0
B53: компот из куряги | C53: 200
B54: куряга | D54: 15 | E54: 12.9 | F54: 0.1 | G54: 0.013 | H54: 1.13 | I54: 5.28 | J54: 1.29
B55: сахар | D55: 12 | E55: 12 | H55: 11.98 | I55: 45.48
F56: =SUM(F54:F55) -> 0.1 | G56: =SUM(G54:G55) -> 0.013 | H56: =SUM(H54:H55) -> 13.11 | I56: =SUM(I54:I55) -> 50.76 | J56: =SUM(J54:J55) -> 1.29
B57: хлеб ржаной | C57: 50 | D57: 50 | E57: 50 | F57: 3.3 | G57: 4.6 | H57: 0.6 | I57: 90.5
F58: =SUM(F57:F57) -> 3.3 | G58: =SUM(G57:G57) -> 4.6 | H58: =SUM(H57:H57) -> 0.6 | I58: =SUM(I57:I57) -> 90.5 | J58: =SUM(J57:J57) -> 0
F59: =F58+F56+F52+F47+F46+F36+F26 -> 50.497 | G59: =G58+G56+G52+G47+G46+G36+G26 -> 27.929 | H59: 28.7664 | I59: 747.283 | J59: 37.39
F60: =F59+F19 -> 66.277 | G60: =G59+G19 -> 44.949 | H60: =H59+H19 -> 61.2404 | I60: =I59+I19 -> 1205.133 | J60: =J59+J19 -> 37.55

Sheet 4д.
A1: день 4 | B1: наименование блюд | C1: кол-во | D1: брутта | E1: нетто | F1: Б | G1: Ж | H1: У | I1: Ккал | J1: С
A2: завтрак | B2: каша вязкая геркулесоваяс маслом | C2: 200
B3: крупа" геркулес." | D3: 20 | E3: 20 | F3: 2.2 | G3: 1.24 | H3: 10.28 | I3: 61
B4: молоко пастериз.2,5% | D4: 150 | E4: 150 | F4: 4.27 | G4: 3.75 | H4: 7.09 | I4: 78 | J4: 1.95
B5: сахар | D5: 5 | E5: 5 | G5: 4.99 | H5: 18.95
B6: масло сливочное | D6: 5 | E6: 5 | F6: 0.04 | G6: 3.63 | H6: 0.13 | I6: 33.05
B7: соль поваренная йодиров. | D7: 1 | E7: 1
F8: =SUM(F3:F7) -> 6.51 | G8: =SUM(G3:G7) -> 13.61 | H8: =SUM(H3:H7) -> 36.45 | I8: =SUM(I3:I7) -> 172.05 | J8: =SUM(J3:J7) -> 1.95
B9: какао с молоком | C9: 180
B10: какао порошок | D10: 2 | E10: 2 | F10: 0.97 | G10: 0.7 | H10: 1.16 | I10: 14.92
B11: сахар | D11: 12 | E11: 12 | H11: 11.98 | I11: 45.48
B12: молоко пастериз.2,5% | D12: 150 | E12: 150 | F12: 4.27 | G12: 3.75 | H12: 7.09 | I12: 78
F13: =SUM(F10:F12) -> 5.24 | G13: =SUM(G10:G12) -> 4.45 | H13: =SUM(H10:H12) -> 20.23 | I13: =SUM(I10:I12) -> 138.4 | J13: =SUM(J10:J12) -> 0
B14: Булка с маслом и сыром | C14: 40/5/6
B15: хлеб пшеничный | D15: 40 | E15: 40 | F15: 3.5 | G15: 0.6 | H15: 0.58 | I15: 83.6
B16: масло сливочное | D16: 5 | E16: 5 | F16: 0.04 | G16: 3.63 | H16: 0.13 | I16: 33.09
B17: сыр | D17: 5 | E17: 5 | F17: 1.56 | G17: 1.54 | I17: 20.28 | J17: 0.16
F18: =SUM(F15:F17) -> 5.1 | G18: =SUM(G15:G17) -> 5.77 | H18: =SUM(H15:H17) -> 0.71 | I18: =SUM(I15:I17) -> 136.97 | J18: =SUM(J15:J17) -> 0.16
F19: =F8+F13+F18 -> 16.85 | G19: =G8+G13+G18 -> 23.83 | H19: 57.39 | I19: 447.42 | J19: 2.11
A21: обед | B21: салат из св огурцов | C21: 50
B22: огурцы свежие | D22: 50 | E22: 46.5 | F22: 0.4 | G22: 0.46 | H22: 1.36 | I22: 6.51 | J22: 4.65
B23: масло растит | D23: 4 | E23: 4 | G23: 3.99 | I23: 35.96
B24: соль поваренная йодиров. | D24: 1 | E24: 1
F25: =SUM(F22:F24) -> 0.4 | G25: =SUM(G22:G24) -> 4.45 | H25: 1.36 | I25: 42.47 | J25: 4.65
B26: щи на мк/б | C26: 200
B27: картофель 01.01 | D27: 120 | E27: 86.4 | F27: 2.4 | G27: 0.34 | H27: 14.94 | I27: 69.12 | J27: 17.3
B28: капуста белок | D28: 50 | E28: 40 | F28: 0.9 | G28: 0.04 | H28: 1.92 | I28: 10.8 | J28: 18
B29: лук репч. | D29: 10 | E29: 8 | F29: 0.14 | H29: 0.75 | I29: 3.45 | J29: 0.84
B30: морковьс 01.01 | D30: 17 | E30: 12 | F30: 0.22 | G30: 0.01 | H30: 1.14 | I30: 4.62 | J30: 0.68
B31: масло растит | D31: 3 | E31: 3 | G31: 2.99 | I31: 26.97
B32: мясо говядина | D32: 30 | E32: 22 | F32: 5.58 | G32: 3.6 | I32: 49.05
B33: гренки | D33: 20 | E33: 20 | F33: 1.74 | G33: 0.3 | H33: 8.2 | I33: 41.8
B34: масло сливочное | D34: 3 | E34: 3 | F34: 0.024 | G34: 2.18 | H34: 0.078 | I34: 19.83
B35: сметана | D35: 7 | E35: 7 | F35: 0.196 | G35: 1.4 | H35: 0.22 | I35: 14.42 | J35: 0.02
B36: соль поваренная йодиров. | D36: 1 | E36: 1
F37: =SUM(F27:F35) -> 11.2 | G37: =SUM(G27:G35) -> 10.86 | H37: 27.248 | I37: 240.06 | J37: 36.84
B38: Томаты порционные | C38: 60 | D38: 60 | E38: 57 | F38: 1.14 | G38: 0.058 | H38: 2.5 | I38: 13.1 | J38: 14.26
B40: плов мясной | C40: 200
B41: мясо говядина | D41: 80 | E41: 60 | F41: 14.88 | G41: 9.6 | I41: 130.8
B42: масло сливочное | D42: 3 | E42: 3 | F42: 0.024 | G42: 2.18 | H42: 0.078 | I42: 19.83
B43: морковь с 01.01 | D43: 16 | E43: 12.8 | F43: 0.21 | G43: 0.01 | H43: 1.076 | I43: 4.35 | J43: 0.64
B44: лук репчатый | D44: 11 | E44: 9 | F44: 0.154 | H44: 0.921 | I44: 3.79 | J44: 0.92
B45: крупа рисовая | D45: 45 | E45: 45 | F45: 3.15 | G45: 0.45 | H45: 30.99 | I45: 147
B46: масло растит | D46: 4 | E46: 4 | G46: 3.99 | H46: 35.96
B47: соль поваренная йодиров. | D47: 1 | E47: 1
F48: =SUM(F41:F47) -> 3.538 | G48: =SUM(G41:G47) -> 16.23 | H48: 69.025 | I48: 305.77 | J48: 1.56
B49: компот из св яблок | C49: 200
B50: яблоки | D50: 30 | E50: 26.4 | F50: 0.12 | G50: 0.1 | H50: 2.37 | I50: 11.87 | J50: 43.6
B51: сахар | D51: 12 | E51: 12 | H51: 11.97 | I51: 45.47
F52: =F51+F50 -> 0.12 | G52: =G51+G50 -> 0.1 | H52: 14.34 | I52: 57.34 | J52: 43.6
B53: хлеб пшеничный | C53: 20 | F53: 1.74 | G53: 0.3 | H53: 0.28 | I53: 41.8
B54: хлеб ржаной | C54: 20 | F54: 1.32 | G54: 0.24 | H54: 0.7 | I54: 36.2
F55: =SUM(F53:F54) -> 3.06 | G55: =SUM(G53:G54) -> 0.54 | H55: 0.98 | I55: 78 | J55: 0
F56: =F25+F37+F38+F48+F52+F55 -> 19.458 | G56: =G25+G37+G38+G48+G52+G55 -> 32.238 | H56: 115.453 | I56: 736.74 | J56: 100.91
F57: =F56+F19 -> 36.308 | G57: =G56+G19 -> 56.068 | H57: 172.843 | I57: 1184.16 | J57: 103.02 | K57: 0

Sheet 5д
A1: день5 | B1: наименование блюд | C1: кол-во | D1: брутто | E1: нетто | F1: Б | G1: Ж | H1: У | I1: Ккал | J1: С
A2: завтрак | B2: каша дружба вязкая с маслом | C2: 200/5
B3: крупа пшено | D3: 10 | E3: 10 | F3: 1.15 | G3: 0.33 | H3: 6.58 | I3: 34.45
B4: крупа рис | D4: 10 | E4: 10 | F4: 0.7 | G4: 0.0099 | H4: 7.12 | I4: 32.67
B5: молоко | D5: 150 | E5: 150 | F5: 4.23 | G5: 3.75 | H5: 7.09 | I5: 78 | J5: 1.95
B6: сахар | D6: 5 | E6: 5 | H6: 4.99 | I6: 18.95
B7: масло сливочное | D7: 5 | E7: 5 | F7: 0.04 | G7: 3.63 | H7: 0.13 | I7: 33.05
B8: соль поваренная йодиров. | D8: 1 | E8: 1
F9: =SUM(F3:F8) -> 6.12 | G9: =SUM(G3:G8) -> 7.7199 | H9: =SUM(H3:H8) -> 25.91 | I9: =SUM(I3:I8) -> 197.12 | J9: =SUM(J3:J8) -> 1.95
B10: кофейный напиток с молоком | C10: 180
B11: кофейный напиток | D11: 3 | E11: 3
B12: сахар | D12: 12 | E12: 12 | H12: 11.98 | I12: 45.48
B13: молоко | D13: 150 | E13: 150 | F13: 4.23 | G13: 3.75 | H13: 7.09 | I13: 78 | J13: 1.95
F14: =SUM(F10:F13) -> 4.23 | G14: =SUM(G10:G13) -> 3.75 | H14: 19.07 | I14: 123.48 | J14: 1.95
B15: Батон с маслом и сыром | C15: 40/5/6
B16: хлеб пшеничный | D16: 40 | E16: 40 | F16: 3.5 | G16: 0.6 | H16: 0.58 | I16: 83.6
B17: масло сливочное | D17: 5 | E17: 5 | F17: 0.04 | G17: 3.63 | H17: 0.13 | I17: 33.09
B18: сыр | D18: 5 | E18: 5 | F18: 1.56 | G18: 1.54 | I18: 20.28 | J18: 0.16
F19: =SUM(F16:F18) -> 5.1 | G19: =SUM(G16:G18) -> 5.77 | H19: 0.71 | I19: 136.97 | J19: 0.16
F20: =F19+F14+F9 -> 15.45 | G20: =G19+G14+G9 -> 17.2399 | H20: 45.69 | I20: 457.57 | J20: 4.06
A22: обед | B22: салат из свежих помидор. и огурц. | C22: 60
B23: помидоры св. | D23: 31 | E23: 29.45 | F23: 0.59 | G23: 0.03 | H23: 0.92 | I23: 6.77 | J23: 7.36
B24: огурцы св. | D24: 37 | E24: 34.41 | F24: 0.26 | G24: 0.034 | H24: 0.68 | I24: 3.78 | J24: 2.41
B25: масло растительное | D25: 3 | E25: 3 | G25: 2.99 | I25: 26.97
B26: лук репчатый | D26: 12 | E26: 10 | F26: 0.17 | H26: 0.98 | I26: 4.13 | J26: 1.01
B27: соль поваренная йодиров. | D27: 1 | E27: 1
F28: =SUM(F23:F26) -> 1.02 | G28: =SUM(G23:G26) -> 3.054 | H28: 2.58 | I28: 41.65 | J28: 10.78
B29: суп" крестьянский" на мк/б | C29: 200
B30: капуста белокач. 01.03 | D30: 100 | E30: 96 | F30: 2.16 | G30: 0.096 | H30: 4.5 | I30: 25.92 | J30: 43.2
B31: картофель 01.03 | D31: 120.9 | E31: 86.4 | F31: 2.4 | G31: 0.34 | H31: 14.2 | I31: 69.12 | J31: 17.3
B32: крупа( перлов.пшенная.рисовая) | D32: 10 | E32: 10 | F32: 2 | G32: 0.11 | H32: 6.6 | I32: 31.68
B33: морковь с 01.01 | D33: 13 | E33: 10 | F33: 0.16 | G33: 0.009 | H33: 0.78 | I33: 3.26 | J33: 0.48
B34: лук репчатый | D34: 12 | E34: 10 | F34: 0.17 | H34: 0.98 | I34: 4.13 | J34: 1.01
B35: масло растит. | D35: 5 | E35: 5 | G35: 4.99 | J35: 44.95
B36: мясо говядина | D36: 30 | E36: 15
B37: масло слив. | D37: 3 | E37: 3 | F37: 0.024 | G37: 2.18 | H37: 0.78 | I37: 19.83
B38: соль поваренная йодиров. | D38: 1 | E38: 1
B39: сметана | D39: 5 | E39: 5
F40: =SUM(F29:F39) -> 6.914 | G40: =SUM(G29:G39) -> 7.725 | H40: 27.84 | I40: 153.94 | J40: 106.94
B41: жаркое по -домашнему | C41: 200
B42: говядина | D42: 80 | E42: 60 | F42: 14.9 | G42: 9.6 | H42: 11.61 | I42: 62.7
B43: картофель 01.02 | D43: 156 | E43: 112.3 | F43: 3.12 | G43: 0.45 | H43: 19.43 | I43: 89.86 | J43: 22.5
B44: лук репчатый | D44: 15 | E44: 12.6 | F44: 0.21 | H44: 1.15 | I44: 5.17 | J44: 1.26
B45: масло растит | D45: 3 | E45: 3 | G45: 2.99 | I45: 26.97
B46: соль поваренная йодиров. | D46: 2 | E46: 2
B47: морковь с 01.01 | D47: 13 | E47: 10 | F47: 0.16 | G47: 0.009 | H47: 0.78 | I47: 3.26 | J47: 0.48
B48: масло слив. | D48: 5 | E48: 5 | F48: 0.04 | G48: 3.63 | H48: 0.13 | I48: 39.05
F49: =SUM(F41:F48) -> 18.43 | G49: =SUM(G41:G48) -> 16.679 | H49: =SUM(H41:H48) -> 33.1 | I49: =SUM(I41:I48) -> 227.01 | J49: =SUM(J41:J48) -> 24.24
B50: компот из с/фр | C50: 200
B51: фрукты сушеные | D51: 20 | E51: 20 | F51: 0.44 | H51: 8.14 | I51: 35.02
B52: сахар | D52: 12 | E52: 12 | H52: 11.97 | I52: 45.48
F53: =SUM(F51:F52) -> 0.44 | G53: =SUM(G51:G52) -> 0 | H53: 20.11 | I53: 80.5 | J53: 0
B54: хлеб пшеничный | C54: 20 | D54: 20 | E54: 20 | F54: 1.74 | G54: 0.3 | H54: 7.8 | I54: 41.8
B55: хлеб ржаной | C55: 20 | D55: 20 | E55: 20 | F55: 1.32 | G55: 0.24 | H55: 7.1 | I55: 36.2
F56: =SUM(F50:F55) -> 3.94 | G56: =SUM(G50:G55) -> 0.54 | H56: =SUM(H50:H55) -> 55.12 | I56: =SUM(I50:I55) -> 239 | J56: =SUM(J50:J55) -> 0
F57: =SUM(F54:F56) -> 7 | G57: =SUM(G54:G56) -> 1.08 | H57: 70.02 | I57: 317 | J57: 0
F58: =F57+F53+F49+F40+F28 -> 33.804 | G58: =G57+G53+G49+G40+G28 -> 28.538 | H58: 153.65 | I58: 820.1 | J58: 141.96
F59: =F58+F20 -> 49.254 | G59: =G58+G20 -> 45.7779 | H59: 199.34 | I59: 1277.67 | J59: 146.02

Sheet 6д.
A1: день6 | B1: наименование блюд | C1: кол-во | D1: брутто | E1: нетто | F1: Б | G1: Ж | H1: У | I1: Ккал | J1: С
B2: яйцо вар. | D2: 1 шт | E2: 40
A3: завтрак | B3: каша вязкая пшеничная с маслом | C3: 200/5
B4: крупа пшеничная | D4: 20 | E4: 20
B5: молоко | D5: 150 | E5: 150 | F5: 4.23 | G5: 3.75 | H5: 7.09 | I5: 78
B6: сахар | D6: 5 | E6: 5 | H6: 4.99 | I6: 18.95
B7: масло сливочное | D7: 5 | E7: 5 | F7: 0.04 | G7: 3.63 | H7: 0.13 | I7: 33.05
B8: соль поваренная йодиров. | D8: 1 | E8: 1
F9: =SUM(F2:F8) -> 4.27 | G9: =SUM(G2:G8) -> 7.38 | H9: 12.21 | I9: 130 | J9: 0
B10: какао с молоком | C10: 180
B11: какао порошок | D11: 2 | E11: 2
B12: сахар | D12: 12 | E12: 12 | H12: 11.97 | I12: 45.48
B13: молоко пастериз.2,5% | D13: 150 | E13: 150 | F13: 4,23 | G13: 3.75 | H13: 7.09 | I13: 78
F14: 4.23 | G14: =SUM(G10:G13) -> 3.75 | H14: =SUM(H10:H13) -> 19.06 | I14: 123.48 | J14: 0
B15: Бутерброд с маслом и сыром | C15: 40/5/6
B16: хлеб пшеничный | D16: 40 | E16: 40 | F16: 3.5 | G16: 0.6 | H16: 0.58 | I16: 83.6
B17: масло сливочное | D17: 5 | E17: 5 | F17: 0.04 | G17: 3.63 | H17: 0.13 | I17: 33.09
B18: сыр | D18: 5 | E18: 5 | F18: 1.56 | G18: 1.54 | I18: 20.28 | J18: 0.16
F19: =SUM(F16:F18) -> 5.1 | G19: =SUM(G16:G18) -> 5.77 | H19: =SUM(H16:H18) -> 0.71 | I19: =SUM(I16:I18) -> 136.97 | J19: =SUM(J16:J18) -> 0.16
F20: =F9+F14+F19 -> 13.6 | G20: =G9+G14+G19 -> 16.9 | H20: 31.98 | I20: 390.45 | J20: 0.16
A22: обед | B22: салат из моркови с курагой | C22: 60
B23: морковь с 01.03 | D23: 70 | E23: 56 | F23: 0.91 | G23: 0.056 | H23: 4.13 | I23: 19.04 | J23: 2.8
B24: курага | D24: 14 | E24: 14 | F24: 0.73 | H24: 7.7 | I24: 3.28
B25: сахар | D25: 3 | E25: 3 | H25: 2.99 | I25: 11.37
F26: =SUM(F22:F25) -> 1.64 | G26: =SUM(G22:G25) -> 0.056 | H26: =SUM(H22:H25) -> 14.82 | I26: =SUM(I22:I25) -> 33.69 | J26: 2.8
B27: Суп гороховый на м/к бульоне | C27: 150
B28: Горох лущенный | D28: 20 | E28: 19.9 | F28: 0.41 | G28: 0.4 | H28: 0.91 | I28: 59.3 | J28: 6.8
B29: картофель | D29: 80 | E29: 56 | F29: 2.4 | G29: 0.34 | H29: 14.94 | I29: 69.12 | J29: 11.5
B30: морковьс 01.03 | D30: 10 | E30: 7.75 | F30: 0.13 | G30: 0.008 | H30: 0.95 | I30: 2.6 | J30: 0.3
B31: лук репчатый | D31: 5 | E31: 4.2 | F31: 0.07 | H31: 0.38 | I31: 1.72 | J31: 0.42
B32: масло растит | D32: 2 | E32: 2 | G32: 1.99 | I32: 17.98 | J32: 0
B33: мясо говядины | D33: 30 | E33: 22.5 | F33: 5.58 | G33: 3.6 | I33: 49.05
B34: масло сливочное | D34: 2 | E34: 2 | F34: 0.01 | G34: 1.45 | H34: 0.052 | I34: 13.22
B35: соль йодированный | D35: 2 | E35: 2
F36: =SUM(F28:F35) -> 8.6 | G36: =SUM(G28:G35) -> 7.788 | H36: 17.232 | I36: 212.99 | J36: 19.02
B37: гуляш из говядины | C37: 80
B38: мясо говядина | D38: 80 | E38: 60 | F38: 14.88 | G38: 9.6 | I38: 130.8
B39: масса отв мяса | E39: 60
B40: морковьс 01.01 | D40: 26 | E40: 21 | F40: 0.34 | G40: 0.021 | H40: 1.49 | I40: 7.07 | J40: 1.04
B41: лук репчатый | D41: 13 | E41: 11 | F41: 1.82 | H41: 0.99 | I41: 4.48 | J41: 1.09
B42: масло сливочное | D42: 3 | E42: 3 | F42: 0.024 | G42: 2.18 | H42: 0.78 | I42: 19.83
B43: мука пшеничн 1 сорт | D43: 3 | E43: 3 | F43: 0.32 | G43: 0.04 | H43: 2.03 | I43: 9.93
B44: масло растит | D44: 3 | E44: 3 | G44: 3.01 | I44: 26.97
B45: соль поваренная йодиров. | D45: 2 | E45: 2
B46: томатн пюре | D46: 6 | E46: 6 | F46: 0.29 | H46: 1.14 | I46: 5.94
F47: =SUM(F37:F46) -> 17.674 | G47: =SUM(G37:G46) -> 14.851 | H47: 6.43 | I47: 205.02 | J47: 2.13
B48: макароны отварные. Вар яицо | C48: 130
B49: макар изделия | D49: 45 | E49: 45 | F49: 4.68 | G49: 0.49 | H49: 31.36 | I49: 151.7
B50: масло сливочное | D50: 2 | E50: 2
B51: яицо | D51: 0.5 | E51: 0.5
F52: =SUM(F48:F51) -> 4.68 | G52: =SUM(G48:G51) -> 0.49 | H52: 31.36 | I52: 151.7 | J52: 0
B53: компот из св яблок | C53: 200
B54: яблоки | D54: 30 | E54: 26.4 | F54: 0,12 | G54: 0.11 | H54: 2.58 | I54: 11.88 | J54: 43.6
B55: сахар | D55: 12 | E55: 12 | H55: 11.98 | I55: 45.48
F56: 0.12 | G56: =SUM(G53:G55) -> 0.11 | H56: =SUM(H53:H55) -> 14.56 | I56: 57.36 | J56: 43.6
B57: хлеб ржаной | C57: 40 | D57: 40 | E57: 40 | F57: 2.64 | G57: 0.48 | H57: 14.2 | I57: 72.4
F58: =F26+F36+F47+F52+F56+F57 -> 35.354 | G58: =G26+G36+G47+G52+G56+G57 -> 23.775 | H58: =H26+H36+H47+H52+H56+H57 -> 98.602 | I58: =I26+I36+I47+I52+I56+I57 -> 733.16 | J58: =J26+J36+J47+J52+J56+J57 -> 67.55
F59: =F58+F20 -> 48.954 | G59: =G58+G20 -> 40.675 | H59: 130.582 | I59: 1123.61 | J59: 67.71
B60: пудинг из творога с рисом смет соусом | C60: 150
B61: творог полужирный | D61: 100 | E61: 100 | F61: 16.7 | G61: 9 | H61: 4 | I61: 159 | J61: 0.5
B62: крупа рис | D62: 15 | E62: 14.8 | F62: 1.1 | G62: 0.15 | H62: 0.104 | I62: 49.003
B63: сахар | D63: 8 | E63: 8 | H63: 7.98 | I63: 30.32
B64: мука | D64: 5 | E64: 5 | F64: 0.5 | G64: 0.055 | H64: 0.01 | I64: 16.7
B65: яица | D65: 0.3 | E65: 0.3 | F65: 0.03 | G65: 0.03 | H65: 0.001 | I65: 0.41
B66: масло сливочное | D66: 5 | E66: 5 | F66: 0.04 | G66: 3.63 | H66: 0.13 | I66: 33.05
B67: масло растит | D67: 3 | E67: 3 | G67: 2.99 | I67: 26.67
B68: ванилин | D68: 0.01 | E68: 0.01
B69: сметана 20% | D69: 10 | E69: 10 | F69: 0.28 | G69: 2 | H69: 0.64 | I69: 20.6
B70: соль поваренная йодиров. | D70: 1 | E70: 1
F71: =SUM(F61:F70) -> 18.65 | G71: =SUM(G61:G70) -> 17.855 | H71: =SUM(H61:H70) -> 12.865 | I71: =SUM(I61:I70) -> 335.753 | J71: =SUM(J61:J70) -> 0.5
F72: =F71+F59 -> 67.604 | G72: =G71+G59 -> 58.53 | H72: 143.447 | I72: 1459.363 | J72: 68.21

Sheet 7д
A1: день7 | B1: наименование блюд | C1: кол-во | D1: брутто | E1: нетто | F1: Б | G1: Ж | H1: У | I1: Ккал | J1: С
A2: завтрак | B2: каша гречневая молочная с маслом | C2: 200/5
B3: крупа гречневая | D3: 20 | E3: 19.6 | F3: 1.9 | G3: 0.45 | H3: 13.12 | I3: 64.48
B4: молоко | D4: 150 | E4: 150 | F4: 4.23 | G4: 3.75 | H4: 7.09 | I4: 78
B5: сахар | D5: 5 | E5: 5 | H5: 4.99 | I5: 18.95
B6: масло сливочное | D6: 5 | E6: 5 | F6: 0.04 | G6: 3.63 | H6: 0.13 | I6: 33.05
B7: соль йодиров. | D7: 1 | E7: 1
F8: =SUM(F2:F7) -> 6.17 | G8: =SUM(G2:G7) -> 7.83 | H8: 25.33 | I8: 194.48 | J8: 0
B9: кофейный напиток с молоком | C9: 180
B10: кофейный напиток | D10: 3 | E10: 3
B11: сахар | D11: 12 | E11: 12 | H11: 11.97 | I11: 45.48
B12: молоко | D12: 150 | E12: 150 | F12: 4.23 | G12: 3.75 | H12: 7.09 | I12: 78
F13: =SUM(F9:F12) -> 4.23 | G13: =SUM(G9:G12) -> 3.75 | H13: 19.06 | I13: 123.48 | J13: 0
B14: Бутерброд с маслом и сыром | C14: 40/5/6
B15: хлеб пшеничный | D15: 40 | E15: 40 | F15: 3.5 | G15: 0.6 | H15: 0.58 | I15: 83.6
B16: масло сливочное | D16: 5 | E16: 5 | F16: 0.04 | G16: 3.63 | H16: 0.13 | I16: 33.09
B17: сыр | D17: 5 | E17: 5 | F17: 1.56 | G17: 1.54 | I17: 20.28 | J17: 0.16
F18: =SUM(F15:F17) -> 5.1 | G18: =SUM(G15:G17) -> 5.77 | H18: =SUM(H15:H17) -> 0.71 | I18: =SUM(I15:I17) -> 136.97 | J18: =SUM(J15:J17) -> 0.16
F19: =F8+F13+F18 -> 15.5 | G19: =G8+G13+G18 -> 17.35 | H19: 45.1 | I19: 454.93 | J19: 0.16
A20: обед | B20: салат из свеклы | C20: 100
B21: свекла | D21: 107 | E21: 85.6 | F21: 1.6 | G21: 0.08 | H21: 8.55 | I21: 35.95 | J21: 8.56
B22: масло растит | D22: 5 | E22: 5 | G22: 4.99 | I22: 44.95
B23: сахар | D23: 2 | E23: 2 | H23: 1.99 | I23: 7.58
F24: =SUM(F20:F23) -> 1.6 | G24: =SUM(G20:G23) -> 5.07 | H24: 10.54 | I24: 88.48 | J24: 8.56
B25: Рассольник "Ленинградский"на мк/б | C25: 200
B26: картофель01.01 | C26: 150 | D26: 120 | E26: 86.4 | F26: 2.4 | G26: 0.34 | H26: 14.94 | I26: 69.12 | J26: 17.3
B27: крупа перловая | D27: 10 | E27: 9.9 | F27: 2 | G27: 0.11 | H27: 6.6 | I27: 31.68
B28: морковь с01.01 | D28: 13 | E28: 9.6 | F28: 0.16 | G28: 0.009 | H28: 0.78 | I28: 3.26 | J28: 0.48
B29: лук репчатый | D29: 12 | E29: 10.8 | F29: 0.17 | H29: 0.98 | I29: 4.13 | J29: 1.01
B30: огурцы соленые | D30: 16 | E30: 16 | F30: 0.13 | G30: 0.01 | H30: 0.25 | I30: 2.08 | J30: 0.8
B31: мясо говядина | D31: 40 | E31: 30 | F31: 7.44 | G31: 4.8 | I31: 65.4
B32: соль йодиров. | D32: 2 | E32: 2
B33: масло сливочное | D33: 2 | E33: 2 | F33: 0.016 | G33: 1.45 | H33: 0.052 | I33: 13.22
B34: масло растит | D34: 2 | E34: 2 | G34: 1.99 | I34: 17.98
B35: сметана | D35: 5 | E35: 5 | F35: 0.14 | G35: 1 | H35: 0.16 | I35: 10.3 | J35: 0.015
F36: =SUM(F25:F35) -> 12.456 | G36: =SUM(G25:G35) -> 9.709 | H36: 23.762 | I36: 217.17 | J36: 19.605
B37: рыбные котлеты | C37: 70
B38: рыба минтай | D38: 120 | E38: 55.2 | F38: 19.08 | G38: 0.5 | I38: 39.74
B39: хлеб пшен. | D39: 10 | E39: 10 | F39: 0.87 | G39: 0.15 | H39: 3.86 | I39: 20.9
B40: молоко пастериз.2,5% | D40: 17 | E40: 17 | F40: 0.48 | G40: 0.43 | H40: 0.8 | I40: 8.84 | J40: 0.22
B41: масло слив. | D41: 3.5 | E41: 3.5 | F41: 0.03 | G41: 2.55 | H41: 0.091 | I41: 23.27
B42: масло растит | D42: 4 | E42: 4 | G42: 3.99 | I42: 35.96
B43: яицо | D43: 0.1 | E43: 0.09 | F43: 0.013 | G43: 0.1 | H43: 0.00061 | I43: 0.14
B44: соль поваренная йодиров. | D44: 2 | E44: 2
B45: лук репчатый | D45: 12 | E45: 10.8 | F45: 0.17 | H45: 0.98 | I45: 4.13 | J45: 1.01
B46: масса полуфабриката | E46: 80
F47: =SUM(F37:F46) -> 20.643 | G47: =SUM(G37:G46) -> 7.72 | H47: =SUM(H37:H46) -> 5.73161 | I47: =SUM(I37:I46) -> 132.98 | J47: =SUM(J37:J46) -> 1.23
B48: огурцы порционные | C48: 60 | D48: 60 | E48: 55.8 | F48: 0.48 | G48: 0.056 | H48: 2.02 | I48: 7.82 | J48: 5.58
B49: гороховое пюре | C49: 130
B50: горох лушен. | D50: 50 | E50: 49.7 | F50: 11.5 | G50: 0.8 | H50: 25.82 | I50: 156.2
B51: масло сливочное | D51: 3 | E51: 3 | F51: 0.24 | G51: 2.18 | H51: 0.78 | I51: 19.83
F52: =SUM(F49:F51) -> 11.74 | G52: =SUM(G49:G51) -> 2.98 | H52: 26.6 | I52: 176.03 | J52: 0
B53: компот из св яблок | C53: 200
B54: яблоки | D54: 30 | E54: 26.4 | F54: 0.12 | G54: 0.11 | H54: 2.77 | I54: 11.88 | J54: 43.56
B55: сахар | D55: 12 | E55: 12 | H55: 11.97 | I55: 45.48
F56: =SUM(F53:F55) -> 0.12 | G56: =SUM(G53:G55) -> 0.11 | H56: 14.74 | I56: 57.36 | J56: 43.56
B57: хлеб пшеничный | C57: 20 | D57: 20 | E57: 20 | F57: 1.74 | G57: 0.3 | H57: 0.28 | I57: 41.8
B58: хлеб ржаной | C58: 20 | D58: 20 | E58: 20 | F58: 1.32 | G58: 0.24 | H58: 0.7 | I58: 36.2
F59: =SUM(F57:F58) -> 3.06 | G59: =SUM(G57:G58) -> 0.54 | H59: 0.98 | I59: 78 | J59: 0
F60: =F59+F56+F52+F48+F47+F36+F24 -> 50.099 | G60: =G59+G56+G52+G48+G47+G36+G24 -> 26.185 | H60: 84.37361 | I60: 757.84 | J60: 78.535
B61: Дневная сумма | F61: =F60+F19 -> 65.599 | G61: =G60+G19 -> 43.535 | H61: 129.47361 | I61: 1212.77 | J61: 78.695

Sheet 8д
A1: день8 | B1: наименование блюд | C1: кол-во | D1: брутто | E1: нетто | F1: Б | G1: Ж | H1: У | I1: Ккал | J1: С
A2: завтрак | B2: каша вязкая рисовая с маслом | C2: 200/5 | D2: 5.67 | E2: 5.28
B3: рис | D3: 20 | E3: 19.8 | F3: 1.4 | G3: 0.198 | H3: 14.22 | I3: 65.34
B4: молоко | D4: 150 | E4: 150 | F4: 4.23 | G4: 3.75 | H4: 7.09 | I4: 78
B5: сахар | D5: 5 | E5: 5 | H5: 4.99 | I5: 18.95
B6: масло сливочное | D6: 5 | E6: 5 | F6: 0.04 | G6: 3.63 | H6: 0.13 | I6: 33.05
B7: соль поваренная йодиров. | D7: 1.5 | E7: 1.5
F8: =SUM(F2:F7) -> 5.67 | G8: =SUM(G2:G7) -> 7.578 | H8: 26.43 | I8: 195.34 | J8: =SUM(J2:J7) -> 0
B9: чай с молоком | C9: 180
B10: чай | D10: 0.6 | E10: 0.6
B11: молоко | D11: 100 | E11: 100 | F11: 2.82 | G11: 2.5 | H11: 4.73 | I11: 52 | J11: 1.3
B12: сахар | D12: 12 | E12: 12 | H12: 11.97 | I12: 45.48
F13: =SUM(F9:F12) -> 2.82 | G13: =SUM(G9:G12) -> 2.5 | H13: 16.7 | I13: 97.48 | J13: 1.3
B14: Бутерброд с маслом и сыром | C14: 40/5/6
B15: хлеб пшеничный | D15: 40 | E15: 40 | F15: 3.5 | G15: 0.6 | H15: 0.58 | I15: 83.6
B16: масло сливочное | D16: 5 | E16: 5 | F16: 0.04 | G16: 3.63 | H16: 0.13 | I16: 33.09
B17: сыр | D17: 5 | E17: 5 | F17: 1.56 | G17: 1.54 | I17: 20.28 | J17: 0.16
F18: =SUM(F15:F17) -> 5.1 | G18: =SUM(G15:G17) -> 5.77 | H18: =SUM(H15:H17) -> 0.71 | I18: =SUM(I15:I17) -> 136.97 | J18: =SUM(J15:J17) -> 0.16
F19: =F18+F13+F8 -> 13.59 | G19: =G18+G13+G8 -> 15.848 | H19: 43.84 | I19: 429.79 | J19: 1.46
A20: обед | B20: салат из св помидоров | C20: 60
B21: помидоры свежие | D21: 51 | E21: 48.45 | F21: 0.96 | G21: 0.05 | H21: 1.55 | I21: 11.14 | J21: 12.1
B22: лук репчатый | D22: 13 | E22: 9.6 | F22: 0.16 | G22: 0.009 | H22: 0.78 | I22: 3.26 | J22: 0.48
B23: масло растит | D23: 3 | E23: 3 | G23: 3.01 | I23: 26.97
B24: соль йодиров. | D24: 1 | E24: 1
F25: =SUM(F20:F24) -> 1.12 | G25: =SUM(G20:G24) -> 3.069 | H25: 2.33 | I25: 41.37 | J25: 12.58
B26: суп дом. лапша на мк/б | C26: 200
B27: мясо говядины | D27: 30 | E27: 15
B28: яицо | D28: 0.1 | E28: 0.1 | F28: 0.013 | G28: 0.01 | H28: 0.0006 | I28: 0.137
B29: мука | D29: 25 | E29: 25
B30: картофельс 01.01 | D30: 150 | E30: 108 | F30: 3 | G30: 0.43 | H30: 18.68 | I30: 86.4 | J30: 21.6
B31: лук репчатый | D31: 12 | E31: 10 | F31: 0.17 | H31: 0.98 | I31: 4.13 | J31: 0.01
B32: морковь с 01.01 | D32: 13 | E32: 10 | F32: 0.16 | G32: 0.009 | H32: 0.78 | I32: 3.26 | J32: 0.48
B33: масло слив | D33: 3 | E33: 3 | F33: 0.024 | G33: 2.18 | H33: 0.78 | I33: 19.83
B34: соль йодиров. | D34: 1 | E34: 1
B35: масло растит | D35: 2 | E35: 2 | G35: 1.99 | I35: 17.98
F36: =SUM(F26:F35) -> 3.367 | G36: =SUM(G26:G35) -> 4.619 | H36: 21.2206 | I36: 131.737 | J36: 22.09
B37: овощное рагу с мясом | C37: 200
B38: капуста белокоч | D38: 80 | E38: 64 | F38: 1.44 | G38: 0.064 | H38: 3.12 | I38: 17.28 | J38: 28.8
B39: морковь с 01.01 | D39: 40 | E39: 32 | F39: 0.52 | G39: 0.032 | H39: 2.32 | I39: 10.88 | J39: 1.6
B40: картофель с01.01 | D40: 120 | E40: 86.4 | F40: 2.4 | G40: 0.34 | H40: 14.94 | I40: 69.12 | J40: 17.3
B41: лук репчатый | D41: 15 | E41: 12.6 | F41: 0.21 | H41: 1.14 | I41: 5.17 | J41: 1.6
B42: масло растит | D42: 4 | E42: 4 | G42: 3.99 | I42: 35.96
B43: мясо говядины | D43: 70 | E43: 52.5 | F43: 13 | G43: 8.4 | I43: 114.5
B44: масло сливочное | D44: 3 | E44: 3 | F44: 0.024 | G44: 2.18 | H44: 0.78 | I44: 19.83
B45: сметана 20 % | D45: 8 | E45: 8 | F45: 0.22 | G45: 1.6 | H45: 0.26 | I45: 16.48 | J45: 0.02
B46: соль йодиров. | D46: 1.5 | E46: 1.5
F47: =SUM(F37:F46) -> 17.814 | G47: =SUM(G37:G46) -> 16.606 | H47: 22.56 | I47: 289.22 | J47: 49.32
B48: компот из куряги | C48: 200
B49: куряга | D49: 15 | E49: 15 | F49: 0.78 | H49: 8.25 | I49: 35.1
B50: сахар | D50: 12 | E50: 12 | H50: 11.97 | I50: 45.48
F51: =SUM(F48:F50) -> 0.78 | G51: =SUM(G48:G50) -> 0 | H51: 20.22 | I51: 80.58 | J51: 0
B52: хлеб ржаной | C52: 50 | D52: 50 | E52: 50 | F52: 3.3 | G52: 0.6 | H52: 17.6 | I52: 90.45
B53: хлеб пшеничный | D53: 30 | E53: 30 | F53: 2.61 | G53: 0.45 | H53: 12 | I53: 62.7
F54: =SUM(F52:F53) -> 5.91 | G54: =SUM(G52:G53) -> 1.05 | H54: 29.6 | I54: 153.15 | J54: 0
F55: =F54+F51+F47+F36+F25 -> 28.991 | G55: =G54+G51+G47+G36+G25 -> 25.344 | H55: 95.9306 | I55: 696.057 | J55: 83.99
F56: =F55+F19 -> 42.581 | G56: =G55+G19 -> 41.192 | H56: 139.7706 | I56: 1125.847 | J56: 85.45
B57: пироги печеные с капустой и яицом | C57: 80
B58: мука пшеничная в/с | D58: 60 | E58: 60 | F58: 6.2 | G58: 0.66 | H58: 0.12 | I58: 200.4
B59: сахар | D59: 5 | E59: 5 | H59: 4.99 | I59: 18.95
B60: молоко пастериз.2,5% | D60: 50 | E60: 50 | F60: 1.41 | G60: 1.25 | H60: 4.72 | I60: 26.9 | J60: 0.65
B61: масло сливичное | D61: 4 | E61: 4 | F61: 0.032 | G61: 2.84 | H61: 0.2 | I61: 25.88
B62: яицо | D62: 0.7 | E62: 0.7 | F62: 0.58 | G62: 0.01 | H62: 0.05 | I62: 2.62
B63: капуста | D63: 30 | E63: 15
B64: дрожжи | D64: 1.3 | E64: 1.3
B65: сметана | D65: 5 | E65: 5 | F65: 0.14 | G65: 1 | H65: 0.32 | I65: 10.3 | J65: 0.015
B66: соль поваренная йодиров. | D66: 2 | E66: 2
B67: масло растит | D67: 2 | E67: 2 | G67: 1.99 | I67: 17.98
F68: =SUM(F58:F67) -> 8.362 | G68: =SUM(G58:G67) -> 7.75 | H68: =SUM(H58:H67) -> 10.4 | I68: =SUM(I58:I67) -> 303.03 | J68: =SUM(J58:J67) -> 0.665
F69: =F68+F56 -> 50.943 | G69: =G68+G56 -> 48.942 | H69: 150.1706 | I69: 1428.877 | J69: 86.115

Sheet 9д
A1: день 9 | B1: наименование блюд | C1: кол-во | D1: брутто | E1: нетто | F1: Б | G1: Ж | H1: У | I1: Ккал | J1: С
A2: завтрак | B2: каша вязкая ячневая с масолом | C2: 200/5
B3: крупа ячневая | D3: 20 | E3: 19.8 | F3: 2 | G3: 0.26 | H3: 13.3 | I3: 64.15
B4: молоко пастериз.2,5% | D4: 150 | E4: 150 | F4: 4.23 | G4: 3.75 | H4: 7.09 | I4: 78
B5: сахар | D5: 5 | E5: 5 | H5: 4.99 | I5: 18.95
B6: соль поваренная йодиров. | D6: 1 | E6: 1
B7: масло сливочное | D7: 5 | E7: 5 | F7: 0,04 | G7: 3.63 | H7: 0.13 | I7: 33.05
F8: =SUM(F2:F7) -> 6.23 | G8: =SUM(G2:G7) -> 7.64 | H8: 25.51 | I8: 194.15 | J8: 0
B9: Чай с молоком | C9: 200
B10: заварка | D10: 1 | E10: 1
B11: сахар | D11: 15 | E11: 15 | H11: 11.97 | I11: 45.48
B12: молоко пастериз.2,5% | D12: 150 | E12: 150 | F12: 4.23 | G12: 3.75 | H12: 7.09 | I12: 78
F13: =SUM(F9:F12) -> 4.23 | G13: =SUM(G9:G12) -> 3.75 | H13: 19.06 | I13: 123.48 | J13: 0
B14: Бутерброд с маслом и сыром | C14: 40/5/6
B15: хлеб пшеничный | D15: 40 | E15: 40 | F15: 3.5 | G15: 0.6 | H15: 0.58 | I15: 83.6
B16: масло сливочное | D16: 5 | E16: 5 | F16: 0.04 | G16: 3.63 | H16: 0.13 | I16: 33.09
B17: сыр | D17: 5 | E17: 5 | F17: 1.56 | G17: 1.54 | I17: 20.28 | J17: 0.16
F18: =SUM(F15:F17) -> 5.1 | G18: =SUM(G15:G17) -> 5.77 | H18: =SUM(H15:H17) -> 0.71 | I18: =SUM(I15:I17) -> 136.97 | J18: =SUM(J15:J17) -> 0.16
F19: =F18+F13+F8 -> 15.56 | G19: =G18+G13+G8 -> 17.16 | H19: 45.28 | I19: 454.6 | J19: 0.16
A20: обед | B20: салат из свеклы с чернослив | C20: 100
B21: свекла | D21: 110 | E21: 50.4 | F21: 0.9 | G21: 0.05 | H21: 4.54 | I21: 21.17 | J21: 5.04
B22: чернослив | D22: 6 | E22: 5.4 | H22: 0.51 | I22: 2.33 | J22: 0.54
B23: масло растит | D23: 3 | E23: 3 | G23: 2.99 | I23: 26.97
B24: сахар | D24: 3 | E24: 3 | H24: 2.99 | I24: 11.37
F25: =SUM(F21:F24) -> 0.9 | G25: =SUM(G21:G24) -> 3.04 | H25: =SUM(H21:H24) -> 8.04 | I25: =SUM(I21:I24) -> 61.84 | J25: =SUM(J21:J24) -> 5.58
B26: суп картофельный с рыбн фрикадельками | C26: 200
B27: картофель с 01.01 | D27: 120 | E27: 86.4 | F27: 2,4 | G27: 0.35 | H27: 4.3 | I27: 69.12 | J27: 17.28
B28: морковь с 01.01 | D28: 20 | E28: 16 | F28: 0,26 | G28: 0.016 | H28: 1.34 | I28: 5.44 | J28: 0.8
B29: лук репчатый | D29: 10 | E29: 8 | F29: 0,14 | H29: 2.17 | I29: 3.44 | J29: 0.84
B30: крупа пшенная | D30: 10 | E30: 9.9 | F30: 1,15 | G30: 0.13 | H30: 15.26 | I30: 31.28
B31: рыба | D31: 80 | E31: 46.4 | F31: 16.8 | G31: 3.25 | I31: 68.21
B32: масло сливочное | D32: 3 | E32: 3 | F32: 0.024 | G32: 2.18 | H32: 0.78 | I32: 19.83
B33: зелень | D33: 2 | E33: 1.68 | H33: 0.035 | J33: 0.64
B34: соль поваренная йодиров. | D34: 1 | E34: 1
B35: масло растит | D35: 3 | E35: 3 | G35: 1.99 | I35: 17.98
F36: =SUM(F26:F35) -> 16.824 | G36: =SUM(G26:G35) -> 7.916 | H36: 23.885 | I36: 215.3 | J36: 19.56
B37: ленивые голубцы | C37: 200
B38: мясо говядины | D38: 80 | E38: 60 | F38: 14.88 | G38: 15.88 | H38: 16.88 | I38: 17.88 | J38: 18.88
B39: лук репчатый | D39: 16 | E39: 13 | F39: 0,22 | G39: 0,23 | H39: 0,24 | I39: 0,25 | J39: 0,26
B40: капуста | D40: 130 | E40: 58.5 | F40: 6,24 | G40: 6,25 | H40: 6,26 | I40: 6,27 | J40: 6,28
B41: рис | D41: 20 | E41: 19.8 | F41: 1.4 | G41: 1.4 | H41: 1.4 | I41: 1.4 | J41: 1.4
B42: масло слив | D42: 3 | E42: 3 | F42: 0.024 | G42: 0.024 | H42: 0.024 | I42: 0.024 | J42: 0.024
B43: сметана | D43: 5 | E43: 5 | F43: 0.14 | G43: 0.14 | H43: 0.14 | I43: 0.14 | J43: 0.14
B44: соль поваренная йодиров. | D44: 1 | E44: 1
F45: =SUM(F38:F44) -> 16.444 | G45: =SUM(G38:G44) -> 17.444 | H45: 18.444 | I45: 19.444 | J45: 20.444
B46: кисель из плодова ягодного конц. | C46: 200
B47: кисель | D47: 15 | E47: 15 | F47: 0.09 | H47: 20.8 | I47: 81.12
B48: сахар | D48: 10 | E48: 10 | H48: 9.98 | I48: 37.9
F49: =SUM(F47:F48) -> 0.09 | G49: =SUM(G47:G48) -> 0 | H49: =SUM(H47:H48) -> 30.78 | I49: =SUM(I47:I48) -> 119.02 | J49: 0
B50: хлеб ржаной | C50: 20 | D50: 20 | E50: 20 | F50: 1.32 | G50: 0.24 | H50: 7.1 | I50: 36.2
B51: хлеб пшеничный | C51: 20 | D51: 20 | E51: 20 | F51: 1.74 | G51: 0.3 | H51: 7.8 | I51: 41.8
F52: =SUM(F50:F51) -> 3.06 | G52: =SUM(G50:G51) -> 0.54 | H52: 14.9 | I52: 78 | J52: 0
F53: =F52+F49+F45+F36+F25 -> 37.318 | G53: =G52+G49+G45+G36+G25 -> 28.94 | H53: =H52+H49+H45+H36+H25 -> 96.049 | I53: =I52+I49+I45+I36+I25 -> 493.604 | J53: =J52+J49+J45+J36+J25 -> 45.584
F54: =F53+F19 -> 52.878 | G54: =G53+G19 -> 46.1 | H54: 141.329 | I54: 948.204 | J54: 45.744

Sheet 10д
A1: день 10 | B1: наименование блюд | C1: кол-во | D1: Брутта | E1: Нетто | F1: Ж | G1: Ж | H1: У | I1: Ккал | J1: С
A2: завтрак | B2: каша дружба вязкая с маслом | C2: 200/5
B3: крупа пшено | D3: 10 | E3: 9.9 | F3: 1.15 | G3: 0.33 | H3: 6.58 | I3: 34.45
B4: крупа рис | D4: 10 | E4: 9.9 | F4: 0.7 | G4: 0.0099 | H4: 7.12 | I4: 32.67
B5: молоко пастериз.2,5% | D5: 150 | E5: 150 | F5: 4.23 | G5: 3.75 | H5: 7.09 | I5: 78 | J5: 1.95
B6: сахар | D6: 5 | E6: 5 | H6: 4.99 | I6: 18.95
B7: масло сливочное | D7: 5 | E7: 5 | F7: 0.04 | G7: 3.63 | H7: 0.13 | I7: 33.05
B8: соль поваренная йодиров. | D8: 1 | E8: 1
F9: =SUM(F3:F8) -> 6.12 | G9: 7.7199 | H9: 25.91 | I9: 197.12 | J9: 1.95
B10: какао с молоком | C10: 200
B11: какао порошок | D11: 2 | E11: 2 | F11: 0.48 | G11: 0.35 | H11: 0.07 | I11: 0.56
B12: сахар | D12: 12 | E12: 12 | H12: 11.98 | I12: 45.48
B13: молоко пастериз.2,5% | D13: 150 | E13: 150 | F13: 4.27 | G13: 3.75 | H13: 7.09 | I13: 78 | J13: 1.95
F14: =SUM(F11:F13) -> 4.75 | G14: =SUM(G11:G13) -> 4.1 | H14: =SUM(H11:H13) -> 19.14 | I14: =SUM(I11:I13) -> 124.04 | J14: =SUM(J12:J13) -> 1.95
B15: Булка с маслом и сыром | C15: 40/5/6
B16: хлеб пшеничный | D16: 40 | E16: 40 | F16: 3.5 | G16: 0.6 | H16: 0.58 | I16: 83.6
B17: масло сливочное | D17: 5 | E17: 5 | F17: 0.04 | G17: 3.63 | H17: 0.13 | I17: 33.09
B18: сыр | D18: 5 | E18: 5 | F18: 1.56 | G18: 1.54 | I18: 20.28 | J18: 0.16
F19: =SUM(F16:F18) -> 5.1 | G19: =SUM(G16:G18) -> 5.77 | H19: =SUM(H16:H18) -> 0.71 | I19: =SUM(I16:I18) -> 136.97 | J19: =SUM(J16:J18) -> 0.16
F20: =F19++F14+F9 -> 15.97 | G20: =G19++G14+G9 -> 17.5899 | H20: 45.76 | I20: 458.13 | J20: 4.06
A22: обед | B22: салат из моркови с яблоками | C22: 60
B23: морковь с 01.01 | D23: 107 | E23: 48 | F23: 0.78 | G23: 0.048 | H23: 4.16 | I23: 16.32 | J23: 2.4
B24: яблоки | D24: 17 | E24: 15 | F24: 0.068 | G24: 0.059 | H24: 1.72 | I24: 6.73 | J24: 24.68
B25: сахар | D25: 2 | E25: 2 | H25: 1.99 | I25: 7.58
B26: масло растит. | D26: 3 | E26: 3 | H26: 2.99 | I26: 26.97
F27: =SUM(F23:F26) -> 0.848 | G27: =SUM(G23:G26) -> 0.107 | H27: =SUM(H23:H26) -> 10.86 | I27: =SUM(I23:I26) -> 57.6 | J27: =SUM(J23:J26) -> 27.08
B28: Щи из свежей капусты на м/б | C28: 200
B29: мясо говядины | D29: 30 | E29: 22.5 | F29: 5.58 | G29: 3.6 | I29: 49.05
B30: Капуста свежая | D30: 62 | E30: 49.6 | F30: 1.12 | G30: 0.5 | H30: 2.32 | I30: 13.39 | J30: 22.3
B31: картофельс 01.01 | D31: 120 | E31: 86.4 | F31: 2.4 | G31: 0.34 | H31: 14.94 | I31: 69.12 | J31: 17.3
B32: лук репчатый | D32: 14 | E32: 10 | F32: 0.17 | H32: 0.99 | I32: 4.13 | J32: 1.01
B33: морковь с 01.01 | D33: 14 | E33: 10 | F33: 0.13 | G33: 0.008 | H33: 0.8 | I33: 2.72 | J33: 0.4
B34: масло слив | D34: 3 | E34: 3 | F34: 0.024 | G34: 2.18 | H34: 0.78 | I34: 19.83
B35: крупа геркулес | D35: 10 | E35: 10 | F35: 1.1 | G35: 0.62 | H35: 5.13 | I35: 30.5
B36: соль п йодиров. | D36: 2 | E36: 2
B37: масло растит | D37: 2 | E37: 2 | G37: 1.99 | I37: 17.98
F38: =SUM(F31:F37) -> 3.824 | G38: =SUM(G31:G37) -> 5.138 | H38: 22.64 | I38: 144.28 | J38: 18.71
B39: мясные котлеты | C39: 70
B40: говядина | D40: 80 | E40: 60 | F40: 14.88 | G40: 9.6 | I40: 130.8
B41: хлеб пшен. | D41: 12 | E41: 12 | F41: 1.04 | G41: 0.18 | H41: 5.85 | I41: 25.08
B42: молоко 2,5% | D42: 15 | E42: 15 | F42: 0.42 | G42: 0.38 | H42: 0.71 | I42: 7.8 | J42: 0.2
B43: сухари | D43: 7 | E43: 7 | F43: 0.61 | G43: 0.11 | H43: 2.79 | I43: 14.63
B44: яицо | D44: 0.1 | E44: 0.087 | F44: 0.013 | G44: 0.01 | H44: 0.00061 | I44: 0.137
B45: масса полуфабриката | E45: 87
B46: лук репчатый | D46: 14 | E46: 10 | F46: 0.17 | H46: 0.99 | I46: 4.13 | J46: 1.01
B47: соль поваренная йодиров. | D47: 1 | E47: 1
F48: =SUM(F40:F46) -> 17.133 | G48: =SUM(G40:G46) -> 10.28 | H48: 10.34061 | I48: 182.577 | J48: 1.21
B49: картоф пюре | C49: 100
B50: картофель с01.01 | D50: 180 | E50: 129.6 | F50: 3.6 | G50: 0.52 | H50: 23.27 | I50: 103.67 | J50: 25.92
B51: молоко | D51: 40 | E51: 40 | F51: 1.12 | G51: 1 | H51: 1.89 | I51: 20.8 | J51: 0.52
B52: масло сливочное | D52: 3 | E52: 3 | F52: 0.024 | G52: 2.18 | H52: 0.048 | I52: 19.83
B53: соль поваренная йодиров. | D53: 1 | E53: 1
F54: =SUM(F50:F53) -> 4.744 | G54: =SUM(G50:G53) -> 3.7 | H54: 25.208 | I54: 144.3 | J54: 26.44
B55: Томаты порционные | C55: 60 | D55: 60 | E55: 57 | F55: 0.57 | G55: 0.058 | H55: 2.5 | I55: 13.1 | J55: 14.26
B56: компот из с/фр | C56: 200
B57: фрукты сушеные | D57: 20 | E57: 20 | F57: 0.44 | H57: 8.97 | I57: 35.02 | J57: 0.352
B58: сахар | D58: 12 | E58: 12 | H58: 11.97 | I58: 45.48
F59: =SUM(F56:F58) -> 0.44 | G59: =SUM(G56:G58) -> 0 | H59: 20.94 | I59: 80.5 | J59: 0.352
B60: хлеб ржаной | C60: 50 | D60: 50 | E60: 50 | F60: 3.3 | G60: 0.6 | H60: 17.6 | I60: 90.5
F61: =F60+F59+F55+F54+F48+F38+F27 -> 30.859 | G61: =G60+G59+G55+G54+G48+G38+G27 -> 19.883 | H61: 110.08861 | I61: 712.857 | J61: 88.052
B63: коржик молочный | C63: 75 | I63: 78.3
B64: масло растит. | E64: 0.25 | G64: 0.24 | I64: 167.6
B65: мука пшен. | D65: 40 | E65: 40 | F65: 4.12 | G65: 0.44 | H65: 27.6 | I65: 80.16
B66: сахар | D66: 21.15 | E66: 21.15 | H66: 21.1 | I66: 66.1
B67: масло слив. | D67: 9.6 | F67: 0.08 | G67: 7.25 | H67: 0.26 | I67: 3.9
B68: яйцо | D68: 2.1 | F68: 0.26 | G68: 0.24 | H68: 0.01 | I68: 4.37
B69: молоко | D69: 11 | F69: 0.21 | G69: 0.24 | H69: 0.36 | I69: 5.9
B70: яйцо для смазки | D70: 0.9 | F70: 0.11 | G70: 0.1 | H70: 1.41
F71: =SUM(F63:F70) -> 4.78 | G71: =SUM(G63:G70) -> 8.51 | H71: 50.74 | I71: 406.33 | J71: 0
F72: =F71+F61+F59+F55+F54+F48+F38+F27 -> 63.198 | G72: =G71+G61+G59+G55+G54+G48+G38+G27 -> 47.676 | H72: 253.31722 | I72: 1741.544 | J72: 176.104
F73: =F72+F20 -> 79.168 | G73: =G72+G20 -> 65.2659 | H73: 299.07722 | I73: 2199.674 | J73: 180.164

Sheet 11д
A2: день 11 | B2: наименование блюд | C2: кол-во | D2: брутта | E2: нетто | F2: Б | G2: Ж | H2: У | I2: Ккал | J2: С
A3: завтрак | B3: каша вязкая пшенная с маслом | C3: 200
B4: масло сливочное "крестьянское" | D4: 5 | E4: 5 | F4: 0.04 | G4: 3.63 | H4: 0.13 | I4: 33.05
B5: крупа пшено | D5: 20 | E5: 20 | H5: 0.34 | I5: 68.9
B6: сахар | D6: 5 | E6: 5 | H6: 4.99 | I6: 18.95
B7: соль поваренная йодиров. | D7: 1 | E7: 1
B8: молоко пастериз.2,5% | D8: 150 | E8: 150 | F8: 4.23 | G8: 3.75 | H8: 7.09 | I8: 78 | J8: 1.95
F9: 4.27 | G9: 7.38 | H9: 12.55 | I9: 198.9 | J9: =SUM(J4:J8) -> 1.95
B10: кофейный напиток с молоком | C10: 180
B11: кофейный напиток | D11: 3 | E11: 3 | H11: 0.084
B12: сахар | D12: 12 | E12: 12 | H12: 11.98 | I12: 45.48
B13: молоко пастериз.2,5% | D13: 150 | E13: 150 | F13: 4.27 | G13: 3.75 | H13: 7.09 | I13: 78 | J13: 1.95
F14: =SUM(F11:F13) -> 4.27 | G14: =SUM(G11:G13) -> 3.75 | H14: =SUM(H11:H13) -> 19.154 | I14: =SUM(I11:I13) -> 123.48 | J14: =SUM(J12:J13) -> 1.95
B15: Бутерброд с маслом и сыром | C15: 40/5/6
B16: хлеб пшеничный | D16: 40 | E16: 40 | F16: 3.5 | G16: 0.6 | H16: 0.58 | I16: 83.6
B17: масло сливочное | D17: 5 | E17: 5 | F17: 0.04 | G17: 3.63 | H17: 0.13 | I17: 33.09
B18: сыр | D18: 5 | E18: 5 | F18: 1.56 | G18: 1.54 | I18: 20.28 | J18: 0.16
F19: =SUM(F16:F18) -> 5.1 | G19: =SUM(G16:G18) -> 5.77 | H19: =SUM(H16:H18) -> 0.71 | I19: =SUM(I16:I18) -> 136.97 | J19: =SUM(J16:J18) -> 0.16
F20: =F19+F14+F9 -> 13.64 | G20: =G19+G14+G9 -> 16.9 | H20: 32.414 | I20: 459.35 | J20: 4.06
A21: №103 | B21: винегрет овощной | C21: 100
B22: картофель | D22: 13.65 | E22: 10 | F22: 0.4 | G22: 0.08 | H22: 3.26 | I22: 16 | J22: 1.97
B23: свекла | D23: 9.55 | E23: 7.6 | F23: 0.22 | G23: 0.03 | H23: 1.36 | I23: 4.8 | J23: 0.76
B24: Морковь | D24: 6.3 | E24: 5 | F24: 0.13 | H24: 0.7 | I24: 3.4 | J24: 4.8
B25: капуста | D25: 10.7 | E25: 7.5 | J25: 3.85
B26: зеленый горошек | D26: 10 | J26: 2.3
B27: лук репчатый | D27: 8.85 | F27: 0.2 | H27: 1.3 | I27: 6.1 | J27: 0.74
B28: соль | D28: 0.5 | E28: 0.5
B29: огурцы сол. | D29: 15 | E29: 7.5 | F29: 0.12 | G29: 0.01 | H29: 0.024 | I29: 1.95 | J29: 0.75
B30: Масло растительное | D30: 5 | E30: 5 | G30: 9.9 | I30: 89.9
B31: итого | F31: =SUM(F22:F30) -> 1.07 | G31: 10.02 | H31: 6.64 | I31: 122.15 | J31: 15.17
B32: суп вермишелевый на мк/б | C32: 200
B33: говядина | D33: 30 | E33: 22.5 | F33: 5.58 | G33: 3.6 | I33: 49.05
B34: морковь | D34: 13 | E34: 10.4 | F34: 0.169 | H34: 0.73 | I34: 3.54 | J34: 0.52
B35: лук | D35: 12 | E35: 10 | F35: 0.17 | G35: 0.01 | H35: 0.9 | I35: 4.13 | J35: 1.01
B36: вермишель | D36: 10 | E36: 10 | F36: 1 | G36: 0.11 | H36: 0.2 | I36: 33.7
B37: картофель | D37: 120 | E37: 86.4 | F37: 2.4 | G37: 0.34 | H37: 14.94 | I37: 69.12 | J37: 17.3
B38: масло сливочное | D38: 3 | E38: 3 | F38: 0.024 | G38: 2.18 | H38: 0.078 | I38: 19.83
B39: масло растительное | D39: 2 | E39: 2 | G39: 1.99 | I39: 17.98
B40: соль поваренная йодиров. | D40: 1.5 | E40: 1.5
F41: =SUM(F33:F40) -> 9.343 | G41: =SUM(G33:G40) -> 8.23 | H41: 16.848 | I41: 197.35 | J41: 18.83
B42: капуста тушен с мясом | C42: 200
B43: капуста свежая | D43: 276 | E43: 220.8 | F43: 5 | G43: 0.22 | H43: 10.76
B44: масло растительное | D44: 5 | E44: 5 | G44: 4.99 | I44: 44.95
B45: морковь | D45: 12 | E45: 9.6 | F45: 0.2 | G45: 0.01 | H45: 0.67 | I45: 3.26 | J45: 0.48
B46: лук репчатый | D46: 18 | E46: 15.72 | H46: 1.36 | I46: 6.13 | J46: 1.51
B47: мясо | D47: 70 | E47: 50 | F47: 13.02 | G47: 8.4 | I47: 114.45
B48: сметана 20% | D48: 10 | E48: 10 | F48: 0.28 | G48: 2 | H48: 0.64 | I48: 20.6 | J48: 0.03
B49: соль поваренная йодиров. | D49: 1.5 | E49: 1.5
B50: масло сливочное | D50: 3 | E50: 3 | F50: 0.024 | G50: 2.18 | H50: 1.078 | I50: 19.83
F51: =SUM(F43:F50) -> 18.524 | G51: =SUM(G43:G50) -> 17.8 | H51: 14.508 | I51: 209.22 | J51: 2.02
B52: компот из св фрукты | C52: 200
B53: яблоки | D53: 25 | E53: 22 | F53: 0.1 | G53: 0.088 | H53: 1.98 | I53: 9.9 | J53: 36.3
B54: сахар | D54: 12 | E54: 12 | H54: 11.98 | I54: 45.48
F55: =SUM(F53:F54) -> 0.1 | G55: =SUM(G53:G54) -> 0.088 | H55: 13.96 | I55: 55.38 | J55: 36.3
B56: хлеб ржаной | C56: 50 | F56: 3.3 | G56: 0.6 | H56: 0.6 | I56: 90.5
F57: =F56+F55+F51+F41+F31 -> 32.34 | G57: =G56+G55+G51+G41+G31 -> 36.74 | H57: 52.56 | I57: 674.60 | J57: 72.32
F58: =F57+F20 -> 45.977 | G58: =G57+G20 -> 53.638 | H58: 84.974 | I58: 1133.95 | J58: 76.38

Sheet 12д
A1: день 12 | B1: наименование блюд | C1: кол-во | D1: брутто | E1: нетто | F1: Б | G1: Ж | H1: У | I1: Ккал | J1: С
A2: завтрак | B2: каша вязкая рисовая с маслом | C2: 200/5 | D2: 5.67 | E2: 5.28
B3: рис | D3: 20 | E3: 19.8 | F3: 1.4 | G3: 0.198 | H3: 14.22 | I3: 65.34
B4: молоко | D4: 150 | E4: 150 | F4: 4.23 | G4: 3.75 | H4: 7.09 | I4: 78
B5: сахар | D5: 5 | E5: 5 | H5: 4.99 | I5: 18.95
B6: масло сливочное | D6: 5 | E6: 5 | F6: 0.04 | G6: 3.63 | H6: 0.13 | I6: 33.05
B7: соль поваренная йодиров. | D7: 1.5 | E7: 1.5
F8: =SUM(F2:F7) -> 5.67 | G8: =SUM(G2:G7) -> 7.578 | H8: 26.43 | I8: 195.34 | J8: =SUM(J2:J7) -> 0
B9: чай с молоком | C9: 180
B10: чай | D10: 0.6 | E10: 0.6
B11: молоко | D11: 100 | E11: 100 | F11: 2.82 | G11: 2.5 | H11: 4.73 | I11: 52 | J11: 1.3
B12: сахар | D12: 12 | E12: 12 | H12: 11.97 | I12: 45.48
F13: =SUM(F9:F12) -> 2.82 | G13: =SUM(G9:G12) -> 2.5 | H13: 16.7 | I13: 97.48 | J13: 1.3
B14: Бутерброд с маслом и сыром | C14: 40/5/6
B15: хлеб пшеничный | D15: 40 | E15: 40 | F15: 3.5 | G15: 0.6 | H15: 0.58 | I15: 83.6
B16: масло сливочное | D16: 5 | E16: 5 | F16: 0.04 | G16: 3.63 | H16: 0.13 | I16: 33.09
B17: сыр | D17: 5 | E17: 5 | F17: 1.56 | G17: 1.54 | I17: 20.28 | J17: 0.16
F18: =SUM(F15:F17) -> 5.1 | G18: =SUM(G15:G17) -> 5.77 | H18: =SUM(H15:H17) -> 0.71 | I18: =SUM(I15:I17) -> 136.97 | J18: =SUM(J15:J17) -> 0.16
F19: =F18+F13+F8 -> 13.59 | G19: =G18+G13+G8 -> 15.848 | H19: 43.84 | I19: 429.79 | J19: 1.46
A20: обед | B20: салат из св помидоров | C20: 60
B21: помидоры свежие | D21: 51 | E21: 48.45 | F21: 0.96 | G21: 0.05 | H21: 1.55 | I21: 11.14 | J21: 12.1
B22: лук репчатый | D22: 13 | E22: 9.6 | F22: 0.16 | G22: 0.009 | H22: 0.78 | I22: 3.26 | J22: 0.48
B23: масло растит | D23: 3 | E23: 3 | G23: 3.01 | I23: 26.97
B24: соль йодиров. | D24: 1 | E24: 1
F25: =SUM(F20:F24) -> 1.12 | G25: =SUM(G20:G24) -> 3.069 | H25: 2.33 | I25: 41.37 | J25: 12.58
B26: суп дом. лапша на мк/б | C26: 200
B27: мясо говядины | D27: 30 | E27: 15
B28: яицо | D28: 0.1 | E28: 0.1 | F28: 0.013 | G28: 0.01 | H28: 0.0006 | I28: 0.137
B29: мука | D29: 25 | E29: 25
B30: картофельс 01.01 | D30: 150 | E30: 108 | F30: 3 | G30: 0.43 | H30: 18.68 | I30: 86.4 | J30: 21.6
B31: лук репчатый | D31: 12 | E31: 10 | F31: 0.17 | H31: 0.98 | I31: 4.13 | J31: 0.01
B32: морковь с 01.01 | D32: 13 | E32: 10 | F32: 0.16 | G32: 0.009 | H32: 0.78 | I32: 3.26 | J32: 0.48
B33: масло слив | D33: 3 | E33: 3 | F33: 0.024 | G33: 2.18 | H33: 0.78 | I33: 19.83
B34: соль йодиров. | D34: 1 | E34: 1
B35: масло растит | D35: 2 | E35: 2 | G35: 1.99 | I35: 17.98
F36: =SUM(F26:F35) -> 3.367 | G36: =SUM(G26:G35) -> 4.619 | H36: 21.2206 | I36: 131.737 | J36: 22.09
B37: овощное рагу с мясом | C37: 200
B38: капуста белокоч | D38: 80 | E38: 64 | F38: 1.44 | G38: 0.064 | H38: 3.12 | I38: 17.28 | J38: 28.8
B39: морковь с 01.01 | D39: 40 | E39: 32 | F39: 0.52 | G39: 0.032 | H39: 2.32 | I39: 10.88 | J39: 1.6
B40: картофель с01.01 | D40: 120 | E40: 86.4 | F40: 2.4 | G40: 0.34 | H40: 14.94 | I40: 69.12 | J40: 17.3
B41: лук репчатый | D41: 15 | E41: 12.6 | F41: 0.21 | H41: 1.14 | I41: 5.17 | J41: 1.6
B42: масло растит | D42: 4 | E42: 4 | G42: 3.99 | I42: 35.96
B43: мясо говядины | D43: 70 | E43: 52.5 | F43: 13 | G43: 8.4 | I43: 114.5
B44: масло сливочное | D44: 3 | E44: 3 | F44: 0.024 | G44: 2.18 | H44: 0.78 | I44: 19.83
B45: сметана 20 % | D45: 8 | E45: 8 | F45: 0.22 | G45: 1.6 | H45: 0.26 | I45: 16.48 | J45: 0.02
B46: соль йодиров. | D46: 1.5 | E46: 1.5
F47: =SUM(F37:F46) -> 17.814 | G47: =SUM(G37:G46) -> 16.606 | H47: 22.56 | I47: 289.22 | J47: 49.32
B48: компот из куряги | C48: 200
B49: куряга | D49: 15 | E49: 15 | F49: 0.78 | H49: 8.25 | I49: 35.1
B50: сахар | D50: 12 | E50: 12 | H50: 11.97 | I50: 45.48
F51: =SUM(F48:F50) -> 0.78 | G51: =SUM(G48:G50) -> 0 | H51: 20.22 | I51: 80.58 | J51: 0
B52: хлеб ржаной | C52: 50 | D52: 50 | E52: 50 | F52: 3.3 | G52: 0.6 | H52: 17.6 | I52: 90.45
B53: хлеб пшеничный | D53: 30 | E53: 30 | F53: 2.61 | G53: 0.45 | H53: 12 | I53: 62.7
F54: =SUM(F52:F53) -> 5.91 | G54: =SUM(G52:G53) -> 1.05 | H54: 29.6 | I54: 153.15 | J54: 0
F55: =F54+F51+F47+F36+F25 -> 28.991 | G55: =G54+G51+G47+G36+G25 -> 25.344 | H55: 95.9306 | I55: 696.057 | J55: 83.99
F56: =F55+F19 -> 42.581 | G56: =G55+G19 -> 41.192 | H56: 139.7706 | I56: 1125.847 | J56: 85.45
B57: пироги печеные с кап.и яицом | C57: 80
B58: мука пшеничная в/с | D58: 60 | E58: 60 | F58: 6.2 | G58: 0.66 | H58: 0.12 | I58: 200.4
B59: сахар | D59: 5 | E59: 5 | H59: 4.99 | I59: 18.95
B60: молоко пастериз.2,5% | D60: 50 | E60: 50 | F60: 1.41 | G60: 1.25 | H60: 4.72 | I60: 26.9 | J60: 0.65
B61: масло сливичное | D61: 4 | E61: 4 | F61: 0.032 | G61: 2.84 | H61: 0.2 | I61: 25.88
B62: яицо | D62: 0.7 | E62: 0.7 | F62: 0.58 | G62: 0.01 | H62: 0.05 | I62: 2.62
B63: капуста | D63: 30 | E63: 15
B64: дрожжи | D64: 1.3 | E64: 1.3
B65: сметана | D65: 5 | E65: 5 | F65: 0.14 | G65: 1 | H65: 0.32 | I65: 10.3 | J65: 0.015
B66: соль поваренная йодиров. | D66: 2 | E66: 2
B67: масло растит | D67: 2 | E67: 2 | G67: 1.99 | I67: 17.98
F68: =SUM(F58:F67) -> 8.362 | G68: =SUM(G58:G67) -> 7.75 | H68: =SUM(H58:H67) -> 10.4 | I68: =SUM(I58:I67) -> 303.03 | J68: =SUM(J58:J67) -> 0.665
F69: =F68+F56 -> 50.943 | G69: =G68+G56 -> 48.942 | H69: 150.1706 | I69: 1428.877 | J69: 86.115

Sheet Свод на 10 дней
A1: Накопительная ведомость по расходу продуктов питания для детей ( в день на одного ребенка в граммах (нетто))
A4: Наименования | B4: 1 день | C4: 2 день | D4: 3 день | E4: 4 день | F4: 5 день | G4: 6 день | H4: 7 день | I4: 8 день | J4: 9 день | K4: 10 день | L4: Итого за 10 дней | M4: Факт за 1 день на 1-го человека в гр (нетто) | N4: Норма на 1-го человека в день в гр(нетто) | O4: Отклонения в гр.
A5: 1 | B5: 2 | C5: 3 | D5: 4 | E5: 5 | F5: 6 | G5: 7 | H5: 8 | I5: 9 | J5: 10 | K5: 11 | L5: 12 | M5: 13 | N5: 14 | O5: 15
A6: Хлеб пшеничный | L6: =SUM(B6:K6) -> 0.00 | M6: =L6/10 -> 0.00
A7: хлеб пшеничный | L7: 0.00 | M7: =L7/10 -> 0.00
A8: сухари панировочные | L8: 0.00 | M8: 0.00 | Q8: Свод соберите сами
A9: Хлеб ржано-пшен | L9: 0.00 | M9: 0.00
A10: Мука пшеничная | L10: 0.00 | M10: 0.00
A11: Крупы(злаки),бобовые | L11: 0.00 | M11: 0.00
A12: геркулес | L12: 0.00 | M12: 0.00
A13: горох | L13: 0.00 | M13: 0.00
A14: греча | L14: 0.00 | M14: 0.00
A15: манная крупа | L15: 0.00 | M15: 0.00
A16: перловка | L16: 0.00 | M16: 0.00
A17: пшеничка | L17: 0.00 | M17: 0.00
A18: пшено | L18: 0.00 | M18: 0.00
A19: рис | L19: 0.00 | M19: 0.00
A20: фасоль | L20: 0.00 | M20: 0.00
A21: ячневая | L21: 0.00 | M21: 0.00
A22: Макаронные изделия | L22: 0.00 | M22: 0.00
A23: Картофель | L23: 0.00 | M23: 0.00
A24: зеленый горошек | L24: 0.00 | M24: 0.00
A25: зелень(укроп,петрушка) | L25: 0.00 | M25: 0.00
A26: икра кабочковая | L26: 0.00 | M26: 0.00
A27: капуста квашеная | L27: 0.00 | M27: 0.00
A28: капуста свежая | L28: 0.00 | M28: 0.00
A29: лук репчатый | L29: 0.00 | M29: 0.00
A30: брюква | L30: 0.00 | M30: 0.00
A31: морковь | L31: 0.00 | M31: 0.00
A32: огурцы свежые | L32: 0.00 | M32: 0.00
A33: огурцы соленые | L33: 0.00 | M33: 0.00
A34: капуста морская | L34: 0.00 | M34: 0.00
A35: помидоры свежие | L35: 0.00 | M35: 0.00
A36: репа | L36: 0.00 | M36: 0.00
A37: свекла | L37: 0.00 | M37: 0.00
A38: томатная паста | L38: 0.00 | M38: 0.00
A39: чеснок | L39: 0.00 | M39: 0.00
A40: Фрукты свежие | L40: 0.00 | M40: 0.00
A41: апельсин | L41: 0.00 | M41: 0.00
A42: бананы | L42: 0.00 | M42: 0.00
A43: груши | L43: 0.00 | M43: 0.00
A44: лимон | L44: 0.00 | M44: 0.00
A45: мандарины | L45: 0.00 | M45: 0.00
L46: 0.00 | M46: 0.00
A47: яблоки | L47: 0.00 | M47: 0.00
A48: клюква | L48: 0.00 | M48: 0.00
A49: брусника | L49: 0.00 | M49: 0.00
A50: Фрукты сухие | L50: 0.00 | M50: 0.00
A51: изюм | L51: 0.00 | M51: 0.00
A52: курага | L52: 0.00 | M52: 0.00
A53: сухофрукты | L53: 0.00 | M53: 0.00
A54: чернослив | L54: 0.00 | M54: 0.00
A55: шиповник плоды | L55: 0.00 | M55: 0.00
A56: Кондитерские изделия | L56: 0.00 | M56: 0.00
A57: вафли обогащенные | L57: 0.00 | M57: 0.00
A58: ванилин | L58: 0.00 | M58: 0.00
A59: варенье | L59: 0.00 | M59: 0.00
A60: конфета обогощенная | L60: 0.00 | M60: 0.00
A61: джем,повидло | L61: 0.00 | M61: 0.00
A62: зефир | L62: 0.00 | M62: 0.00
L63: 0.00 | M63: 0.00
A64: печенье обогащенное | L64: 0.00 | M64: 0.00
L65: 0.00 | M65: 0.00
A66: Сахар | L66: 0.00 | M66: 0.00
A67: сахар | L67: 0.00 | M67: 0.00
A68: сахарная пудра | L68: 0.00 | M68: 0.00
A69: Масло сладкосливочное | L69: 0.00 | M69: 0.00
A70: Масло растительное | L70: =SUM(B70:K70) -> 0.00 | M70: =L70/10 -> 0.00
A71: Яйцо (шт) | L71: 0.00 | M71: =L71/10 -> 0.00
A72: Молоко и кисломол/прод (в том числе молоко сгущенное) | L72: =SUM(B72:K72) -> 0.00 | M72: =L72/10 -> 0.00
A73: молоко | L73: 0.00 | M73: 0.00
A74: молоко сгущ | L74: 0.00 | M74: 0.00
A75: ацидофилин | L75: 0.00 | M75: 0.00
A76: бифидокефир | L76: 0.00 | M76: 0.00
A77: лактобактерин | L77: 0.00 | M77: 0.00
A78: йогурт 2,5% | L78: 0.00 | M78: 0.00
A79: кефир с бифидофлорой | L79: 0.00 | M79: 0.00
A80: ряженка | L80: 0.00 | M80: 0.00
A81: Молоко сгущеное | L81: =SUM(B81:K81) -> 0.00 | M81: 0.00
A82: Творог | L82: 0.00 | M82: 0.00
A83: Мясо | L83: 0.00 | M83: 0.00 | P83: 7 граммов вместо колбасных изделий
A84: говядина | L84: 0.00 | M84: 0.00
A85: печень говяжья | L85: 0.00 | M85: 0.00
A86: Птица | L86: 0.00 | M86: 0.00
A87: Колбасные изделия | L87: 0.00 | M87: 0.00
A88: колбаса | L88: 0.00 | M88: 0.00
A89: сосиски | L89: 0.00 | M89: 0.00
A90: сардельки | L90: 0.00 | M90: 0.00
A91: Рыба | L91: 0.00 | M91: 0.00
A92: сельдь | L92: 0.00 | M92: 0.00
A93: треска | L93: 0.00 | M93: 0.00
L94: 0.00 | M94: 0.00
A95: Сметана 15% | L95: 0.00 | M95: 0.00
A96: Сыр полутвердый в/с | L96: 0.00 | M96: 0.00
A97: Чай в/с | L97: 0.00 | M97: 0.00
A98: Кофейный напиток злаковый | L98: 0.00 | M98: 0.00
A99: Соль | L99: 0.00 | M99: 0.00
A100: Лавровый лист | L100: 0.00 | M100: 0.00
A101: Лимонная кислота | L101: 0.00 | M101: 0.00
A102: Витамин "С" | L102: 0.000 | M102: 0.00
A103: Дрожжи хлебопекарные | L103: 0.00 | M103: 0.00
A104: Мука картофельная | L104: 0.00 | M104: 0.00
A105: крахмал | L105: 0.00 | M105: 0.00
A106: кисель обогащ | L106: 0.00 | M106: 0.00
A107: Какао | L107: =SUM(B107:K107) -> 0.00 | M107: 0.00
A108: Соки фруктовые (овощные) | L108: 0.00 | M108: 0.00
A109: Напитки витаминизированные (готовый напиток) | L109: 0.00 | M109: 0.00

Sheet Технологические карты
D3: ТЕХНОЛОГИЧЕСКАЯ КАРТА КУЛИНАРНОГО ИЗДЕЛИЯ (БЛЮДА) № _____
A5: Наименование кулинарного изделия (блюда): | L5: ВЕРМИШЕЛЬ МОЛОЧНАЯ
A7: Наименование сырья | M7: Расход сырья и полуфабрикатов
M8: 1 порц. | S8: 100 порц.
M9: брутто, г | O9: нетто, г | S9: брутто, кг | U9: нетто, кг
A10: МАСЛО СЛИВОЧНОЕ НЕСОЛЕНОЕ "КРЕСТЬЯНСКОЕ" | M10: 5.00 | O10: 5.00 | S10: 0.50 | U10: 0.50
A11: САХАР-ПЕСОК | M11: 5.00 | O11: 5.00 | S11: 0.50 | U11: 0.50
A12: МОЛОКО ПАСТЕРИЗОВАННОЕ, 2,5% ЖИPНОСТИ | M12: 150.00 | O12: 150.00 | S12: 15.00 | U12: 15.00
A13: МАКАРОННЫЕ ИЗДЕЛИЯ | M13: 20.00 | O13: 19.80 | S13: 2.00 | U13: 1.98
A14: Выход: 150
A16: Химический состав, витамины и микроэлементы на 1 порцию:
A18: Белки, г | I18: 6,1 | K18: С, мг | N18: 0,8 | Q18: Са, мг | T18: 166,6
A20: Жиры, г | I20: 7,3 | K20: А, мкг рет. экв. | N20: 42,4 | Q20: Р, мг | T20: 138,4
A21: Углеводы, г | I21: 23,9 | K21: E, мг | N21: 0,5 | Q21: Mg, мг | T21: 21,8
A22: Энергетическая ценность, ккал | I22: 178,2 | K22: Д, мкг | N22: 0,1 | Q22: Fе, мг | T22: 0,6
K23: В1, мг | N23: 0,1 | Q23: Zn, мг | T23: 0,7
K24: В2, мг | N24: 0,2 | Q24: I, мкг | T24: 13,8
K25: B12, мкг | N25: 0
K26: B6, мкг | N26: 0
K27: РР, мг | N27: 0,4
K28: Фолиевая кислота, мкг | N28: 4
A30: Технология приготовления:
A31: В кипящую воду кладут соль, сахар , подготовленную крупу и варят (15-20 минут), добавляя горячее молоко и варят, периодически помешивая, до готовности.
A33: Источник рецептуры:
A34: "Организация питания в дошкольных учреждениях" Метод мат. Москва, 2001
D39: ТЕХНОЛОГИЧЕСКАЯ КАРТА КУЛИНАРНОГО ИЗДЕЛИЯ (БЛЮДА) № _____
A41: Наименование кулинарного изделия (блюда): | L41: БУЛКА С МАСЛОМ И СЫРОМ
A43: Наименование сырья | M43: Расход сырья и полуфабрикатов
M44: 1 порц. | S44: 100 порц.
M45: брутто, г | O45: нетто, г | S45: брутто, кг | U45: нетто, кг
A46: МАСЛО СЛИВОЧНОЕ НЕСОЛЕНОЕ "КРЕСТЬЯНСКОЕ" | M46: 5.00 | O46: 5.00 | S46: 0.50 | U46: 0.50
A47: СЫР РОССИЙСКИЙ | M47: 10.00 | O47: 9.70 | S47: 1.00 | U47: 0.97
A48: ХЛЕБ ПШЕНИЧНЫЙ ФОРМОВОЙ | M48: 30.00 | O48: 30.00 | S48: 3.00 | U48: 3.00
A49: Выход: 30 / 9
A51: Химический состав, витамины и микроэлементы на 1 порцию:
A53: Белки, г | I53: 4,4 | K53: С, мг | N53: 0 | Q53: Са, мг | T53: 84,2
A55: Жиры, г | I55: 6,3 | K55: А, мкг рет. экв. | N55: 36,2 | Q55: Р, мг | T55: 67,8
A56: Углеводы, г | I56: 13,8 | K56: E, мг | N56: 0,7 | Q56: Mg, мг | T56: 12,0
A57: Энергетическая ценность, ккал | I57: 125,5 | K57: Д, мкг | N57: 0,1 | Q57: Fе, мг | T57: 0,6
K58: В1, мг | N58: 0 | Q58: Zn, мг | T58: 0,5
K59: В2, мг | N59: 0 | Q59: I, мкг | T59: 0
K60: B12, мкг | N60: 0,1
K61: B6, мкг | N61: 0
K62: РР, мг | N62: 0,4
K63: Фолиевая кислота, мкг | N63: 10,4
D66: ТЕХНОЛОГИЧЕСКАЯ КАРТА КУЛИНАРНОГО ИЗДЕЛИЯ (БЛЮДА) № _____
A68: Наименование кулинарного изделия (блюда): | L68: ЩИ ИЗ СВЕЖЕЙ КАПУСТЫ С МЯСОМ
A70: Наименование сырья | M70: Расход сырья и полуфабрикатов
M71: 1 порц. | S71: 100 порц.
M72: брутто, г | O72: нетто, г | S72: брутто, кг | U72: нетто, кг
A73: ГОВЯДИНА 1 КАТЕГОРИИ | M73: 30.00 | O73: 22.50 | S73: 3.00 | U73: 2.25
A74: КАПУСТА БЕЛОКОЧАННАЯ | M74: 30.00 | O74: 24.00 | S74: 3.00 | U74: 2.40
A75: МОРКОВЬ | M75: 10.00 | O75: 7.75 | S75: 1.00 | U75: 0.78
A76: ЛУК РЕПЧАТЫЙ | M76: 5.00 | O76: 4.20 | S76: 0.50 | U76: 0.42
A77: МАСЛО СЛИВОЧНОЕ НЕСОЛЕНОЕ "КРЕСТЬЯНСКОЕ" | M77: 2.00 | O77: 2.00 | S77: 0.20 | U77: 0.20
A78: ВОДА | M78: 120.00 | O78: 120.00 | S78: 12.00 | U78: 12.00
A79: СМЕТАНА 20,0% ЖИРНОСТИ | M79: 5.00 | O79: 5.00 | S79: 0.50 | U79: 0.50
A80: СОЛЬ ПОВАРЕННАЯ ПИЩЕВАЯ | M80: 5.00 | O80: 5.00 | S80: 0.50 | U80: 0.50
A81: Выход: 150
A83: Химический состав, витамины и микроэлементы на 1 порцию:
A85: Белки, г | I85: 4,7 | K85: С, мг | N85: 4,7 | Q85: Са, мг | T85: 38,0
A87: Жиры, г | I87: 5,7 | K87: А, мкг рет. экв. | N87: 137,0 | Q87: Р, мг | T87: 57,5
A88: Углеводы, г | I88: 2,0 | K88: E, мг | N88: 0,1 | Q88: Mg, мг | T88: 12,4
A89: Энергетическая ценность, ккал | I89: 75,3 | K89: Д, мкг | N89: 0 | Q89: Fе, мг | T89: 0,9
K90: В1, мг | N90: 0 | Q90: Zn, мг | T90: 0,8
K91: В2, мг | N91: 0 | Q91: I, мкг | T91: 3,3
K92: B12, мкг | N92: 0,6
K93: B6, мкг | N93: 0,1
K94: РР, мг | N94: 1,2
K95: Фолиевая кислота, мкг | N95: 5,4
A97: Технология приготовления:
A98: В кипящий бульон или воду кладут подготовленную свежую капусту, доводят до кипения, добавляют пассированые овощи и варят до готовности. За 5-10 минут до конца варки в щи добавляют пассированный томат-пюре, пассированную муку, разведенную водой.
A100: Источник рецептуры:
A101: Сборник рецептур 1983г., раскладка №196
D105: ТЕХНОЛОГИЧЕСКАЯ КАРТА КУЛИНАРНОГО ИЗДЕЛИЯ (БЛЮДА) № _____
A107: Наименование кулинарного изделия (блюда): | L107: ГРЕЧКА ОТВАРНАЯ С МАСЛОМ
A109: Наименование сырья | M109: Расход сырья и полуфабрикатов
M110: 1 порц. | S110: 100 порц.
M111: брутто, г | O111: нетто, г | S111: брутто, кг | U111: нетто, кг
A112: КРУПА ГРЕЧНЕВАЯ ЯДРИЦА | M112: 40.00 | O112: 39.60 | S112: 4.00 | U112: 3.96
A113: МАСЛО СЛИВОЧНОЕ НЕСОЛЕНОЕ "КРЕСТЬЯНСКОЕ" | M113: 3.00 | O113: 3.00 | S113: 0.30 | U113: 0.30
A114: Выход: 120
A116: Химический состав, витамины и микроэлементы на 1 порцию:
A118: Белки, г | I118: 4,8 | K118: С, мг | N118: 0 | Q118: Са, мг | T118: 7,7
A120: Жиры, г | I120: 3,3 | K120: А, мкг рет. экв. | N120: 9,6 | Q120: Р, мг | T120: 107,0
A121: Углеводы, г | I121: 20,6 | K121: E, мг | N121: 2,7 | Q121: Mg, мг | T121: 71,3
A122: Энергетическая ценность, ккал | I122: 127,6 | K122: Д, мкг | N122: 0 | Q122: Fе, мг | T122: 2,4
K123: В1, мг | N123: 0,2 | Q123: Zn, мг | T123: 0,8
K124: В2, мг | N124: 0,1 | Q124: I, мкг | T124: 1,3
K125: B12, мкг | N125: 0
K126: B6, мкг | N126: 0,2
K127: РР, мг | N127: 1,4
K128: Фолиевая кислота, мкг | N128: 12,7
A130: Технология приготовления:
A131: В кипящую воду кладут соль, всыпают подготовленную крупу и варят до загустения, периодически помешивая. Когда каша загустеет, доводят до готовности при умеренном нагреве, под закрытой крышкой. В процессе упаривания кашу не перемешивают. Перед подачей поли
A133: Источник рецептуры:
A134: "Организация питания в дошкольных учреждениях" Метод. мат. Москва, 2001г.
D138: ТЕХНОЛОГИЧЕСКАЯ КАРТА КУЛИНАРНОГО ИЗДЕЛИЯ (БЛЮДА) № _____
A140: Наименование кулинарного изделия (блюда): | L140: ГУЛЯШ МЯСНОЙ
A142: Наименование сырья | M142: Расход сырья и полуфабрикатов
M143: 1 порц. | S143: 100 порц.
M144: брутто, г | O144: нетто, г | S144: брутто, кг | U144: нетто, кг
A145: ГОВЯДИНА 1 КАТЕГОРИИ | M145: 55.00 | O145: 41.25 | S145: 5.50 | U145: 4.13
A146: МАСЛО ПОДСОЛНЕЧНОЕ | M146: 2.00 | O146: 2.00 | S146: 0.20 | U146: 0.20
A147: ЛУК РЕПЧАТЫЙ | M147: 5.00 | O147: 4.20 | S147: 0.50 | U147: 0.42
A148: МУКА ПШЕНИЧНАЯ ВЫСШЕГО СОРТА | M148: 3.00 | O148: 2.97 | S148: 0.30 | U148: 0.30
A149: Выход: 55
A151: Химический состав, витамины и микроэлементы на 1 порцию:
A153: Белки, г | I153: 7,7 | K153: С, мг | N153: 0,2 | Q153: Са, мг | T153: 5,0
A155: Жиры, г | I155: 8,1 | K155: А, мкг рет. экв. | N155: 0 | Q155: Р, мг | T155: 74,3
A156: Углеводы, г | I156: 2,2 | K156: E, мг | N156: 1,0 | Q156: Mg, мг | T156: 9,2
A157: Энергетическая ценность, ккал | I157: 107,5 | K157: Д, мкг | N157: 0 | Q157: Fе, мг | T157: 1
K158: В1, мг | N158: 0 | Q158: Zn, мг | T158: 1,3
K159: В2, мг | N159: 0,1 | Q159: I, мкг | T159: 3,1
K160: B12, мкг | N160: 1,1
K161: B6, мкг | N161: 0,2
K162: РР, мг | N162: 1,5
K163: Фолиевая кислота, мкг | N163: 4,7
A165: Технология приготовления:
A166: Нарезанное кубиками по 20-30 гр. обжаренное мясо заливают водой и тушат с добавлением пассированного пюре в закрытой посуде. На бульоне готовят соус, добавляя в него пассированный лук, соль, заливают мясо и тушат 25-30 минут. За 5-10 минут до готовности к
A168: Источник рецептуры:
A169: Сборник рецептур 1983г., №632
D173: ТЕХНОЛОГИЧЕСКАЯ КАРТА КУЛИНАРНОГО ИЗДЕЛИЯ (БЛЮДА) № _____
A175: Наименование кулинарного изделия (блюда): | L175: КОМПОТ ИЗ КУРАГИ
A177: Наименование сырья | M177: Расход сырья и полуфабрикатов
M178: 1 порц. | S178: 100 порц.
M179: брутто, г | O179: нетто, г | S179: брутто, кг | U179: нетто, кг
A180: САХАР-ПЕСОК | M180: 12.00 | O180: 12.00 | S180: 1.20 | U180: 1.20
A181: АБРИКОСЫ СУШЕНЫЕ БЕЗ КОСТОЧКИ (КУРАГА) | M181: 10.00 | O181: 10.00 | S181: 1.00 | U181: 1.00
A182: Выход: 150
A184: Химический состав, витамины и микроэлементы на 1 порцию:
A186: Белки, г | I186: 0,1 | K186: С, мг | N186: 0,4 | Q186: Са, мг | T186: 2,0
A188: Жиры, г | I188: 0 | K188: А, мкг рет. экв. | N188: 6,6 | Q188: Р, мг | T188: 3,1
A189: Углеводы, г | I189: 11,8 | K189: E, мг | N189: 0,2 | Q189: Mg, мг | T189: 1,4
A190: Энергетическая ценность, ккал | I190: 47,2 | K190: Д, мкг | N190: 0 | Q190: Fе, мг | T190: 0,1
K191: В1, мг | N191: 0 | Q191: Zn, мг | T191: 0
K192: В2, мг | N192: 0 | Q192: I, мкг | T192: 0,2
K193: B12, мкг | N193: 0
K194: B6, мкг | N194: 0
K195: РР, мг | N195: 0,1
K196: Фолиевая кислота, мкг | N196: 0,8
A198: Технология приготовления:
A199: Подготовленные сушеные плоды ягоды заливают горячей водой, нагревают до кипения, всыпают сахар и варят до готовности.
A201: Источник рецептуры:
A202: Сборник рецептур 1983г., раскладка №933
D206: ТЕХНОЛОГИЧЕСКАЯ КАРТА КУЛИНАРНОГО ИЗДЕЛИЯ (БЛЮДА) № _____
A208: Наименование кулинарного изделия (блюда): | L208: САЛАТ ИЗ ЗЕЛЕНОГО ГОРОШКА
A210: Наименование сырья | M210: Расход сырья и полуфабрикатов
M211: 1 порц. | S211: 100 порц.
M212: брутто, г | O212: нетто, г | S212: брутто, кг | U212: нетто, кг
A213: МАСЛО РАСТИТЕЛЬНОЕ | M213: 2.00 | O213: 2.00 | S213: 0.20 | U213: 0.20
A214: ГОРОШЕК ЗЕЛЕНЫЙ (КОНСЕРВЫ) | M214: 40.00 | O214: 26.68 | S214: 4.00 | U214: 2.67
A215: ЛУК РЕПЧАТЫЙ | M215: 5.00 | O215: 4.20 | S215: 0.50 | U215: 0.42
A216: Выход: 32
A218: Химический состав, витамины и микроэлементы на 1 порцию:
A220: Белки, г | I220: 0,9 | K220: С, мг | N220: 1,3 | Q220: Са, мг | T220: 6,0
A222: Жиры, г | I222: 2,0 | K222: А, мкг рет. экв. | N222: 0 | Q222: Р, мг | T222: 17,1
A223: Углеводы, г | I223: 1,8 | K223: E, мг | N223: 0,3 | Q223: Mg, мг | T223: 5,5
A224: Энергетическая ценность, ккал | I224: 27,3 | K224: Д, мкг | N224: 0 | Q224: Fе, мг | T224: 0,2
K225: В1, мг | N225: 0 | Q225: Zn, мг | T225: 0,2
K226: В2, мг | N226: 0 | Q226: I, мкг | T226: 0,1
K227: B12, мкг | N227: 0
K228: B6, мкг | N228: 0
K229: РР, мг | N229: 0,2
K230: Фолиевая кислота, мкг | N230: 3,6
A232: Технология приготовления:
A233: Мелко нарубленный репчатый лук смешать прокипяченым зеленым горошком, заправить растительным маслом.
A235: Источник рецептуры:
A236: "Организация детского питания в дошкольных учреждениях" Метод. мат. Москва 2001
D240: ТЕХНОЛОГИЧЕСКАЯ КАРТА КУЛИНАРНОГО ИЗДЕЛИЯ (БЛЮДА) № _____
A242: Наименование кулинарного изделия (блюда): | L242: МОРКОВЬ В МОЛОЧНОМ СОУСЕ
A244: Наименование сырья | M244: Расход сырья и полуфабрикатов
M245: 1 порц. | S245: 100 порц.
M246: брутто, г | O246: нетто, г | S246: брутто, кг | U246: нетто, кг
A247: МОРКОВЬ | M247: 150.00 | O247: 116.25 | S247: 15.00 | U247: 11.63
A248: МАСЛО СЛИВОЧНОЕ НЕСОЛЕНОЕ "КРЕСТЬЯНСКОЕ" | M248: 2.00 | O248: 2.00 | S248: 0.20 | U248: 0.20
A249: САХАР-ПЕСОК | M249: 3.00 | O249: 3.00 | S249: 0.30 | U249: 0.30
A250: КРУПА МАННАЯ | M250: 3.00 | O250: 2.97 | S250: 0.30 | U250: 0.30
A251: МОЛОКО ПАСТЕРИЗОВАННОЕ, 2,5% ЖИPНОСТИ | M251: 100.00 | O251: 100.00 | S251: 10.00 | U251: 10.00
A252: Выход: 150
A254: Химический состав, витамины и микроэлементы на 1 порцию:
A256: Белки, г | I256: 4,4 | K256: С, мг | N256: 2,8 | Q256: Са, мг | T256: 162,5
A258: Жиры, г | I258: 3,9 | K258: А, мкг рет. экв. | N258: 1884,0 | Q258: Р, мг | T258: 141,3
A259: Углеводы, г | I259: 16,2 | K259: E, мг | N259: 0,8 | Q259: Mg, мг | T259: 52,9
A260: Энергетическая ценность, ккал | I260: 115,0 | K260: Д, мкг | N260: 0 | Q260: Fе, мг | T260: 1,2
K261: В1, мг | N261: 0,1 | Q261: Zn, мг | T261: 0,9
K262: В2, мг | N262: 0,3 | Q262: I, мкг | T262: 14,8
K263: B12, мкг | N263: 0
K264: B6, мкг | N264: 0,2
K265: РР, мг | N265: 1,1
K266: Фолиевая кислота, мкг | N266: 11,2
A268: Технология приготовления:
A269: Морковь нарезают кубиками, дольками или брусочками, складывают в кастрюлю, добавляют воду, сливочное масло , доводят до кипения и припускают при небольшом нагреве до готовности. Посуда должна быть плотно закрыта крышкой. Припущенную морковь соединяют с со
A271: Источник рецептуры:
A272: "Организация питания в дошкольных учреждениях" Метод. мат. Москва, 2001г.
D276: ТЕХНОЛОГИЧЕСКАЯ КАРТА КУЛИНАРНОГО ИЗДЕЛИЯ (БЛЮДА) № _____
A278: Наименование кулинарного изделия (блюда): | L278: ЯЙЦО 1/2
A280: Наименование сырья | M280: Расход сырья и полуфабрикатов
M281: 1 порц. | S281: 100 порц.
M282: брутто, г | O282: нетто, г | S282: брутто, кг | U282: нетто, кг
... 1665 more rows
